DATE OF TRANSACTION,LA DEPARTMENT INCURRING SPEND,BENEFICARY,GROSS AMOUNT,SUMMARY OF PURPOSEOF SPEND,MERCHANT CATEGORY
26/08/2021,RUTH HOUSE,W M MORRISONS.COM,285.30,PURCHASE OF FOOD (RAW MATERIALS),"GROCERY STORES, SUPERMARKETS"
27/08/2021,THE ANNEX@84,ET CARHIRE,296.75,EDUC VISITS/HOLS/CAMPS/TOYS,AUTOMOBILE RENTAL AGENCY-NOT ELSEWHERE CLASSIFIED
27/08/2021,ABBEYWOOD,ANA'S PET N TACK,299.85,DAY TO DAY MAINTENANCE,PET SHOPS - PET FOODS AND SUPPLIES
27/08/2021,ARUNDEL,WESTMINSTER BRIDGE HOT,301.62,EDUC VISITS/HOLS/CAMPS/TOYS,PARK PLAZA HOTEL
27/08/2021,ARUNDEL,WESTMINSTER BRIDGE HOT,301.62,EDUC VISITS/HOLS/CAMPS/TOYS,PARK PLAZA HOTEL
27/08/2021,YOUTH OFFER SERVICE,AMZNMKTPLACE AMAZON.CO,386.67,EQUIPMENT,MISCELLANEOUS AND SPECIALTY RETAIL STORES
27/08/2021,NE SECTION 17 CARE,TRAVELODGE GB0000,387.53,INDEPENDENT LIVING PLACEMENTS,TRAVELODGE
27/08/2021,NW SECTION 17 CARE,TRAVELODGE GB0000,417.43,INDEPENDENT LIVING PLACEMENTS,TRAVELODGE
27/08/2021,NE LAC AND LEAVING CARE,TRAVELODGE GB0000,438.03,INDEPENDENT LIVING PLACEMENTS,TRAVELODGE
27/08/2021,COM BUSINESS SUPPORT,PAYPAL  MITALCP2,450.00,EQUIPMENT,PROFESSIONAL SERVICES-NOT ELSEWHERE CLASSIFIED
27/08/2021,NE SECTION 17 CARE,TRAVELODGE GB0000,502.81,INDEPENDENT LIVING PLACEMENTS,TRAVELODGE
28/08/2021,ACL CENTRAL EXPENDITURE,FACEBK AU9CA734H2,700.00,PUBLICITY,ADVERTISING SERVICES
29/08/2021,RUTH HOUSE,IKEA LTD 144 CROYDON M,288.25,FURNITURE,"EQUIP, FURNITURE, HOME FURNSHNGS STRS (EXCPT APPL)"
31/08/2021,NE LAC AND LEAVING CARE,WWW.EPSOM-EWELL.GOV.UK,253.83,INDEPENDENT LIVING PLACEMENTS,GOVERNMENT SERVICES-NOT ELSEWHERE CLASSIFIED
31/08/2021,BURBANK COMMUNITY HOME,SAINSBURYS.CO.UK,306.25,PURCHASE OF FOOD (RAW MATERIALS),"GROCERY STORES, SUPERMARKETS"
31/08/2021,CS BUSINESS SUPPORT WEST,WWW.JOHNLEWIS.COM,394.00,OTHER COMMUNITY CARE VOL,DEPARTMENT STORES
31/08/2021,EDUCATION,AMZNMKTPLACE,467.97,EQUIPMENT,MISCELLANEOUS AND SPECIALTY RETAIL STORES
31/08/2021,CONTACT CENTRE,INSTITUTE OF CUSTOMER,"1,422.00",SUBSISTENCE AND CONFERENCE EXPENSES,"CONSULTING, MANAGEMENT, AND PUBLIC RELATIONS SVCS"
31/08/2021,WEB OPERATIONS TEAM,CLUDO UK LTD,"4,659.60",SUBSCRIPTIONS,"COMP PROGRAMING,DATA PRCSNG,INTGRTD SYS DSGN SRVS"
01/09/2021,NE LAC AND LEAVING CARE,GUILDFORD BOROUGH CNCL,451.36,EQUIPMENT,GOVERNMENT SERVICES-NOT ELSEWHERE CLASSIFIED
01/09/2021,ACL CENTRAL EXPENDITURE,GOOGLE  ADS2777015041,500.00,PUBLICITY,ADVERTISING SERVICES
02/09/2021,CHALKMEAD,AO RETAIL LIMITED,279.00,FIXTURES AND FITTINGS,HOUSEHOLD APPLIANCE STORES
02/09/2021,FAIRMOUNT HOUSE LEATHERHEAD,WWW.HEALEYANDLORD.CO.U,284.00,ADAPTATIONS,"EQUIP, FURNITURE, HOME FURNSHNGS STRS (EXCPT APPL)"
02/09/2021,RUTH HOUSE,W M MORRISONS.COM,287.79,PURCHASE OF FOOD (RAW MATERIALS),"GROCERY STORES, SUPERMARKETS"
02/09/2021,RBDM - GENERAL,CARTRIDGE SAVE,288.68,EQUIPMENT,STATIONERY/OFFICE SUPPLIES/PRINTING & WRITING PAP.
02/09/2021,WOODHATCH,AO RETAIL LIMITED,428.00,EQUIPMENT,HOUSEHOLD APPLIANCE STORES
02/09/2021,RECRUITMENT,INDEED TEL+35312545907,439.35,STAFF ADVERTISING ,BUSINESS SERVICES-NOT ELSEWHERE CLASSIFIED
02/09/2021,TRAINING AND DEVELOPMENT,FIREFIGHTER PROTECTION,497.87,OPERATIONAL FIRE EQUIPMENT,MEN'S AND WOMEN'S CLOTHING STORES
02/09/2021,MH AMHP SERVICE EAST,PETERBOROUGH COUNTY CO,525.00,LEGAL EXPENSES,FINES
02/09/2021,PE/CDT MAINTENANCE OVERHEADS,STAFFORD INSTRUMENTS L,665.45,ITEMS PURCHASED FOR RE-SALE,ELECTRICAL PARTS AND EQUIPMENT
02/09/2021,BIKEABILITY - CYCLE TRAINING,AMZNMKTPLACE,"1,024.39",EQUIPMENT,MISCELLANEOUS AND SPECIALTY RETAIL STORES
03/09/2021,INSTRUMENT HIRE SHOP,WWW.ALDAUTOMOTIVE.CO.U,297.97,HIRE OF VEHICLES,BUSINESS SERVICES-NOT ELSEWHERE CLASSIFIED
03/09/2021,COMMUNICATIONS TEAM,FINANCIAL TIMES,306.80,NEWSPAPER AND PERIODICALS,"BOOKS,PERIODICALS AND NEWSPAPERS"
03/09/2021,TS SERVICE MANAGEMENT,TRADING STANDARDS INST,378.00,SUBSISTENCE AND CONFERENCE EXPENSES,DIRECT MARKETING-COMBINATION CATALOG/RETAIL MERCH.
03/09/2021,RECRUITMENT,GRADUATE PROSPECTS LTD,420.00,STAFF ADVERTISING ,BUSINESS SERVICES-NOT ELSEWHERE CLASSIFIED
03/09/2021,TRAINING AND DEVELOPMENT,ACT NOW TRAINING LIMIT,466.80,TRAINING EXPENSES EXTERNAL GENERAL,"SCHOOLS, TRADE AND VOCATIONAL"
03/09/2021,TRAINING AND DEVELOPMENT,THE ROYAL MARITIME CLU,602.10,TRAINING EXPENSES EXTERNAL GENERAL,"LODGING-HOTELS,MOTELS,RESORTS-NOT CLASSIFIED"
03/09/2021,B & C PRIMARY AUTHORITY PARTNERSHIP     ,VALE GLAM COUNCIL,722.50,FEES,GOVERNMENT SERVICES-NOT ELSEWHERE CLASSIFIED
03/09/2021,DOWNLANDS COUNTRYSIDE PROJECT,LAND SKILLS,869.00,TRAINING EXPENSES EXTERNAL GENERAL,SCHOOLS & EDUCATIONAL SVC-NOT ELSEWHERE CLASSIFIED
03/09/2021,SE SECTION 17 CARE,SITU  2462 SECURITY,"2,771.44",INDEPENDENT LIVING PLACEMENTS,"LODGING-HOTELS,MOTELS,RESORTS-NOT CLASSIFIED"
03/09/2021,ASSET DATA MANAGER,AMZNMKTPLACE,"2,903.27",COMPUTER HARDWARE,MISCELLANEOUS AND SPECIALTY RETAIL STORES
06/09/2021,DOWNLANDS COUNTRYSIDE PROJECT,DVLA VEHICLE TAX,277.50,VEHICLE RUNNING COSTS,TAX PAYMENTS
06/09/2021,MALLOW CRESCENT,AMZNMKTPLACE AMAZON.CO,294.92,FURNITURE,MISCELLANEOUS AND SPECIALTY RETAIL STORES
06/09/2021,CORE ACTIVITY                           ,CAPSULECRM.COM ZESTIA,417.60,COMPUTER SOFTWARE,DIRECT MARKETING-CONTINUITY/SUBSCRIPTION MERCHANTS
06/09/2021,NW SECTION 17 CARE,TRAVELODGE GB0000,462.01,INDEPENDENT LIVING PLACEMENTS,TRAVELODGE
06/09/2021,TRANSPORT,CIRRUS RESEARCH PLC,831.60,VEHICLE REPAIRS AND MAINTENANCE,INDUSTRIAL SUPPLIES NOT ELSEWHERE CLASSIFIED
07/09/2021,MEADOWSIDE,AMZNMKTPLACE,323.39,EDUC VISITS/HOLS/CAMPS/TOYS,MISCELLANEOUS AND SPECIALTY RETAIL STORES
07/09/2021,TRANSPORT,HAWKLEY GROUP LIMITED,498.00,VEHICLE REPAIRS AND MAINTENANCE,BUSINESS SERVICES-NOT ELSEWHERE CLASSIFIED
08/09/2021,BURBANK COMMUNITY HOME,SAINSBURYS.CO.UK,260.22,PURCHASE OF FOOD (RAW MATERIALS),"GROCERY STORES, SUPERMARKETS"
08/09/2021,CS BUSINESS SUPPORT WEST,AMAZON.CO.UK 3V11O81W5,299.28,EQUIPMENT,DIRECT MARKETING-OTHER DIRECT MARKETERS/NOT ELSEW.
08/09/2021,HIGH DOWN PRISON LIBRARY,DLT MEDIA (UK) LTD,359.88,NEWSPAPER AND PERIODICALS,MISCELLANEOUS PUBLISHING AND PRINTING
08/09/2021,HIGH DOWN PRISON LIBRARY,DLT MEDIA (UK) LTD,359.88,NEWSPAPER AND PERIODICALS,MISCELLANEOUS PUBLISHING AND PRINTING
08/09/2021,YOUTH OFFER SERVICE,AMZNMKTPLACE AMAZON.CO,700.05,FIXTURES AND FITTINGS,MISCELLANEOUS AND SPECIALTY RETAIL STORES
08/09/2021,FOUNDATION STAGE WORK,DFR OFFICEOUTLET,"1,359.96",EQUIPMENT,ELECTRONIC SALES
09/09/2021,ACL CENTRAL EXPENDITURE,PAYPAL  BATHPOTTERS,258.52,EQUIPMENT,"BUYING/SHOPPING CLUBS, SERVICES"
09/09/2021,RUTH HOUSE,W M MORRISONS.COM,279.71,PURCHASE OF FOOD (RAW MATERIALS),"GROCERY STORES, SUPERMARKETS"
09/09/2021,TRAINING AND DEVELOPMENT,DVSA,300.00,TRAINING EXPENSES EXTERNAL GENERAL,GOVERNMENT SERVICES-NOT ELSEWHERE CLASSIFIED
09/09/2021,TRANSPORT,D & R ENGINEERING,311.68,VEHICLE REPAIRS AND MAINTENANCE,BOAT DEALERS
09/09/2021,SE CARE - LAC,WWW.ANYVAN.COM,344.00,HIRE OF VEHICLES,"FREIGHT CARRIER,TRUCKING-LCL/LNG DIST, MVG/STORAGE"
09/09/2021,SE LAC AND LEAVING CARE,AO RETAIL LIMITED,424.00,EQUIPMENT,HOUSEHOLD APPLIANCE STORES
10/09/2021,MOVES,AMZNMKTPLACE,323.59,EQUIPMENT,MISCELLANEOUS AND SPECIALTY RETAIL STORES
10/09/2021,TRANSPORT,HANDLING EQUIPMENT ONL,355.20,VEHICLE REPAIRS AND MAINTENANCE,INDUSTRIAL SUPPLIES NOT ELSEWHERE CLASSIFIED
10/09/2021,APPLEWOOD,BIRDIE BIKES,373.00,EQUIPMENT,BICYCLE SHOPS-SALES AND SERVICE
10/09/2021,NW SECTION 17 CARE,TRAVELODGE GB0000,475.25,OTHER COMMUNITY CARE VOL,TRAVELODGE
10/09/2021,NE SECTION 17 CARE,TRAVELODGE GB0000,481.89,INDEPENDENT LIVING PLACEMENTS,TRAVELODGE
10/09/2021,TRANSPORT,HYDRAULIC FLEET SOLUTI,699.36,VEHICLE REPAIRS AND MAINTENANCE,"ARCHITECTURAL, ENGINEERING, AND SURVEYING SERVICES"
10/09/2021,ACL CENTRAL EXPENDITURE,FACEBK FWGTE7X3H2,700.00,PUBLICITY,ADVERTISING SERVICES
10/09/2021,"SW REF, ASS & INT SERVICE - HUB 1",C2E792400142F UKVI,"3,199.00",FEES,GOVERNMENT SERVICES-NOT ELSEWHERE CLASSIFIED
12/09/2021,DEVELOPMENT TEAM,MSFT  <E0100FMXJA>,479.68,SUBSCRIPTIONS,"COMPUTERS, COMPUTER PERIPHERAL EQUIPMENT, SOFTWARE"
12/09/2021,RECRUITMENT,INDEED TEL+35312545907,508.28,STAFF ADVERTISING ,BUSINESS SERVICES-NOT ELSEWHERE CLASSIFIED
13/09/2021,CORONER,CROWNE PLAZA,292.00,VENUE COSTS (INCLUDING HIRE OF ROOMS),"LODGING-HOTELS,MOTELS,RESORTS-NOT CLASSIFIED"
13/09/2021,KARIBU COMMUNITY HOME,SAINSBURYS.CO.UK,316.72,PURCHASE OF FOOD (RAW MATERIALS),"GROCERY STORES, SUPERMARKETS"
13/09/2021,DEVELOPMENT TEAM,MSFT  <E0100FNQSF>,353.18,SUBSCRIPTIONS,"COMPUTERS, COMPUTER PERIPHERAL EQUIPMENT, SOFTWARE"
13/09/2021,ACL CENTRAL EXPENDITURE,SHORTS GROUP WASTE,392.40,EQUIPMENT,"EQUIPMENT RENTAL&LEASING SVS, FURNTURE/TOOL RENTAL"
13/09/2021,DOWNLANDS COUNTRYSIDE PROJECT,D AND E ROBERTS,403.20,UPKEEP OF GROUNDS,"UTLTS-ELCTRC, GAS, HEATING OIL, SANITARY, WATER"
13/09/2021,SOLD ESTATES MANAGEMENT,FARNINGHAM ROAD,512.66,VEHICLE REPAIRS AND MAINTENANCE,AUTOMOTIVE SERVICE SHOPS
14/09/2021,MISC EDCAT SUPPORT,BITEABLE,259.69,TRAINING EXPENSES EXTERNAL GENERAL,MOTION PICTURE/VIDEO TAPE PRODUCTION/DISTRIBUTION
14/09/2021,FIRE SERVICES IT,AMZNMKTPLACE,351.80,COMPUTER HARDWARE,MISCELLANEOUS AND SPECIALTY RETAIL STORES
14/09/2021,,TRAVELODGE GB0000,396.69,INDEPENDENT LIVING PLACEMENTS,TRAVELODGE
14/09/2021,RUTH HOUSE,BELL,397.99,EDUC VISITS/HOLS/CAMPS/TOYS,MISCELLANEOUS HOUSE FURNISHING SPECIALTY SHOPS
14/09/2021,NATIONAL TRADING STANDARDS SCAM TEAM,TRAVELODGE GB0000,406.18,PURCHASE CARD TRANSACTION LOG DEFAULT,TRAVELODGE
14/09/2021,TRAINING AND DEVELOPMENT,HOTEL MERCURE,"1,530.28",TRAINING EXPENSES EXTERNAL GENERAL,HOTEL MERCURE
14/09/2021,RECRUITMENT,WWW.TES.COM,"1,618.80",STAFF ADVERTISING ,SCHOOLS & EDUCATIONAL SVC-NOT ELSEWHERE CLASSIFIED
15/09/2021,BURBANK COMMUNITY HOME,SAINSBURYS.CO.UK,289.81,PURCHASE OF FOOD (RAW MATERIALS),"GROCERY STORES, SUPERMARKETS"
15/09/2021,HEATHSIDE,AMZNMKTPLACE,342.75,DAY TO DAY MAINTENANCE,MISCELLANEOUS AND SPECIALTY RETAIL STORES
15/09/2021,CHALKMEAD,TOOLSTATION UK,418.92,UPKEEP OF GROUNDS,HARDWARE STORES
15/09/2021,SE LAC AND LEAVING CARE,ARGOS LTD,419.98,EQUIPMENT,DISCOUNT STORES
15/09/2021,WOODHATCH,AMZNMKTPLACE AMAZON.CO,452.78,EQUIPMENT,MISCELLANEOUS AND SPECIALTY RETAIL STORES
15/09/2021,TRANSPORT,MOTORLINE HYUNDAI,486.49,VEHICLE REPAIRS AND MAINTENANCE,"AUTO & TRUCK DLRS-SALES,SVC, REPRS,PRTS, & LEASING"
15/09/2021,CHEYNE WALK COMMUNITY HOME,WWW.NISBETS.COM,"1,913.95",EQUIPMENT,DIRECT MARKETING-CATALOG MERCHANTS
15/09/2021,SW FAMILY SAFEGUARDING,C2E792900532A UKVI,"3,199.00",FEES,GOVERNMENT SERVICES-NOT ELSEWHERE CLASSIFIED
15/09/2021,CHILDREN WITH DISABILITIES TEAM EAST,C2E792900505D UKVI,"3,199.00",FEES,GOVERNMENT SERVICES-NOT ELSEWHERE CLASSIFIED
15/09/2021,SW LOOKED AFTER TEAM,C2E792900472L UKVI,"3,199.00",FEES,GOVERNMENT SERVICES-NOT ELSEWHERE CLASSIFIED
15/09/2021,OBODS -DBS CHECKING TEAM,C2E792900309I UKVI,"3,199.00",FEES,GOVERNMENT SERVICES-NOT ELSEWHERE CLASSIFIED
15/09/2021,SW LOOKED AFTER TEAM,C2E792900258S UKVI,"3,199.00",FEES,GOVERNMENT SERVICES-NOT ELSEWHERE CLASSIFIED
16/09/2021,RUTH HOUSE,W M MORRISONS.COM,300.37,PURCHASE OF FOOD (RAW MATERIALS),"GROCERY STORES, SUPERMARKETS"
16/09/2021,APPLEWOOD,IKEA LTD 144 CROYDON M,323.00,EQUIPMENT,"EQUIP, FURNITURE, HOME FURNSHNGS STRS (EXCPT APPL)"
16/09/2021,S.D. EAST AREA MANAGEMENT TEAM,PREMIER INN44015160,363.97,TRAINING EXPENSES EXTERNAL GENERAL,PREMIER INN
16/09/2021,S.D. EAST AREA MANAGEMENT TEAM,PREMIER INN44015160,363.97,TRAINING EXPENSES EXTERNAL GENERAL,PREMIER INN
16/09/2021,S.D. EAST AREA MANAGEMENT TEAM,PREMIER INN44015160,363.97,TRAINING EXPENSES EXTERNAL GENERAL,PREMIER INN
16/09/2021,S.D. EAST AREA MANAGEMENT TEAM,PREMIER INN44015160,363.97,TRAINING EXPENSES EXTERNAL GENERAL,PREMIER INN
16/09/2021,S.D. EAST AREA MANAGEMENT TEAM,PREMIER INN44015160,363.97,TRAINING EXPENSES EXTERNAL GENERAL,PREMIER INN
16/09/2021,S.D. EAST AREA MANAGEMENT TEAM,PREMIER INN44015160,363.97,TRAINING EXPENSES EXTERNAL GENERAL,PREMIER INN
16/09/2021,S.D. EAST AREA MANAGEMENT TEAM,PREMIER INN44015160,363.97,TRAINING EXPENSES EXTERNAL GENERAL,PREMIER INN
16/09/2021,S.D. EAST AREA MANAGEMENT TEAM,PREMIER INN44015160,363.97,TRAINING EXPENSES EXTERNAL GENERAL,PREMIER INN
16/09/2021,NE SECTION 17 CARE,TRAVELODGE GB0000,428.32,INDEPENDENT LIVING PLACEMENTS,TRAVELODGE
16/09/2021,NW SECTION 17 CARE,TRAVELODGE GB0000,447.70,INDEPENDENT LIVING PLACEMENTS,TRAVELODGE
16/09/2021,VIRTUAL SCHOOL FOR LAC PUPIL PREMIUM,AMAZON.CO.UK XQ9OK7P15,490.00,CURRICULUM CONSUMABLES,DIRECT MARKETING-OTHER DIRECT MARKETERS/NOT ELSEW.
16/09/2021,ARUNDEL,THE PIER HOTEL,490.60,EDUC VISITS/HOLS/CAMPS/TOYS,"BAR,LOUNGE,DISCO,NIGHTCLUB,TAVERN-ALCOHOLIC DRINKS"
16/09/2021,RECRUITMENT,INDEED TEL+35312545907,554.69,STAFF ADVERTISING ,BUSINESS SERVICES-NOT ELSEWHERE CLASSIFIED
16/09/2021,ACL CENTRAL EXPENDITURE,WWW.OUP.COM,750.09,SUBSCRIPTIONS,BOOK STORES
17/09/2021,NE SECTION 17 CARE,TRAVELODGE GB0000,397.75,OTHER COMMUNITY CARE VOL,TRAVELODGE
17/09/2021,PE/CDT MAINTENANCE OVERHEADS,WWW.EPSOM-EWELL.GOV.UK,444.17,TRADE REFUSE,GOVERNMENT SERVICES-NOT ELSEWHERE CLASSIFIED
19/09/2021,SERVICE DELIVERY RESOURCES,CROWNE PLAZA,460.00,TRAINING EXPENSES EXTERNAL GENERAL,"LODGING-HOTELS,MOTELS,RESORTS-NOT CLASSIFIED"
20/09/2021,RECRUITMENT,INDEED TEL+35312545907,527.74,STAFF ADVERTISING ,BUSINESS SERVICES-NOT ELSEWHERE CLASSIFIED
20/09/2021,DOWNLANDS COUNTRYSIDE PROJECT,WESTPOINT FARM VETS WF,566.06,UPKEEP OF GROUNDS,VETERINARY SERVICES
20/09/2021,SERVICE DELIVERY RESOURCES,EB  NFCC AUTUMN CONFER,570.00,TRAINING EXPENSES EXTERNAL GENERAL,BUSINESS SERVICES-NOT ELSEWHERE CLASSIFIED
20/09/2021,TRANSPORT,WWW.FTA.CO.UK,785.40,SUBSCRIPTIONS,RAILROADS - FREIGHT
20/09/2021,PORTAGE SERVICE (NE),ABILITY SMART,"1,764.00",TRAINING EXPENSES EXTERNAL GENERAL,COMPUTER SOFTWARE STORES
20/09/2021,SERVICE DELIVERY RESOURCES,PAYPAL  BRITISHFIRE,"2,672.00",DESCRIPTION &AWARD LONG SERVICE,"ASSOCIATIONS-CIVIC, SOCIAL, AND FRATERNAL"
21/09/2021,ORBIS HEAD OF PROCUREMENT,WWW.CIPS.ORG,256.00,FEES,"ORGANIZATIONS, MEMBERSHIP-NOT ELSEWHERE CLASSIFIED"
21/09/2021,SOLD CENTRE IMPROVEMENT,PAYPAL  EBAY UK,269.97,EQUIPMENT,DEPARTMENT STORES
21/09/2021,NE SECTION 17 CARE,TRAVELODGE GB0000,320.25,INDEPENDENT LIVING PLACEMENTS,TRAVELODGE
21/09/2021,SOLD ESTATES MANAGEMENT,WWW.CHAMPIONTIMBER,536.76,DAY TO DAY MAINTENANCE,"BUILDING MATERIALS, LUMBER STORES"
21/09/2021,SERVICE DELIVERY RESOURCES,EB  NFCC AUTUMN CONFER,570.00,SUBSISTENCE AND CONFERENCE EXPENSES,BUSINESS SERVICES-NOT ELSEWHERE CLASSIFIED
21/09/2021,TRANSPORT,SP SERVICES,"1,223.40",OPERATIONAL FIRE EQUIPMENT,DENTAL/LAB/MED/OPHTHALMIC HOSP EQUIP & SUPPLIES
22/09/2021,TRANSPORT,4IMPRINT DIRECT,261.54,"CLOTHING, UNIFORM AND LAUNDRY",DIRECT MARKETING-CONTINUITY/SUBSCRIPTION MERCHANTS
22/09/2021,BURBANK COMMUNITY HOME,SAINSBURYS.CO.UK,276.79,PURCHASE OF FOOD (RAW MATERIALS),"GROCERY STORES, SUPERMARKETS"
22/09/2021,SE EDUCATION PSYCHOLOGISTS,AMAZON.CO.UK IK9L75NC5,310.97,CURRIC BOOKS,DIRECT MARKETING-OTHER DIRECT MARKETERS/NOT ELSEW.
22/09/2021,NE SECTION 17 CARE,TRAVELODGE GB0000,432.40,INDEPENDENT LIVING PLACEMENTS,TRAVELODGE
22/09/2021,NW SECTION 17 CARE,TRAVELODGE GB0000,440.56,INDEPENDENT LIVING PLACEMENTS,TRAVELODGE
22/09/2021,DEMOCRATIC SERVICES TEAM,SPLIT - (83.33%),599.50,SUBSCRIPTIONS,TELECOM INCL PREPAID/RECURRING PHONE SVCS
22/09/2021,CONTRACT TEAM COSTS,AMZNMKTPLACE AMAZON.CO,846.99,EQUIPMENT,MISCELLANEOUS AND SPECIALTY RETAIL STORES
22/09/2021,NW NIL RECOURSE TO PUBLIC FUNDS CARE,HOUSE OF FISHER LTD,"1,414.00",INDEPENDENT LIVING PLACEMENTS,"LODGING-HOTELS,MOTELS,RESORTS-NOT CLASSIFIED"
22/09/2021,SOLD CENTRE IMPROVEMENT,AMAZON.CO.UK I269549S5,"1,429.30",EQUIPMENT,DIRECT MARKETING-OTHER DIRECT MARKETERS/NOT ELSEW.
22/09/2021,TRANSPORT,THREADNEEDLE COMPANY L,"2,594.59","CLOTHING, UNIFORM AND LAUNDRY",MEN'S AND WOMEN'S CLOTHING STORES
23/09/2021,CLOSED LANDFILL,RS COMPONENTS,267.26,EQUIPMENT,ELECTRICAL PARTS AND EQUIPMENT
23/09/2021,KARIBU COMMUNITY HOME,IKEA LTD 144 CROYDON M,363.25,FURNITURE,"EQUIP, FURNITURE, HOME FURNSHNGS STRS (EXCPT APPL)"
23/09/2021,COMMUNICATIONS,FACEBK ERK7W5KZA2,645.15,PUBLICITY,ADVERTISING SERVICES
23/09/2021,TRANSPORT,THOMASKNEALE.CO.UK,"1,139.52","CLOTHING, UNIFORM AND LAUNDRY","DRAPERY, UPOLSTERY, AND WINDOW COVERINGS STORES"
23/09/2021,TRANSPORT,THREADNEEDLE COMPANY L,"2,594.59","CLOTHING, UNIFORM AND LAUNDRY",MEN'S AND WOMEN'S CLOTHING STORES
24/09/2021,SE CARE - LAC,HM PASSPORT OFFICE,254.00,OTHER COMMUNITY CARE VOL,GOVERNMENT SERVICES-NOT ELSEWHERE CLASSIFIED
24/09/2021,SE SECTION 17 CARE,TRAVELODGE GB0000,272.26,INDEPENDENT LIVING PLACEMENTS,TRAVELODGE
24/09/2021,RUTH HOUSE,W M MORRISONS.COM,284.18,PURCHASE OF FOOD (RAW MATERIALS),"GROCERY STORES, SUPERMARKETS"
24/09/2021,NE SECTION 17 CARE,TRAVELODGE GB0000,342.65,INDEPENDENT LIVING PLACEMENTS,TRAVELODGE
24/09/2021,SW FAMILY SAFEGUARDING,C2E793800670G UKVI,"3,199.00",FEES,GOVERNMENT SERVICES-NOT ELSEWHERE CLASSIFIED
25/09/2021,WOODLANDS COMMUNITY HOME,ARGOS LTD,460.00,FIXTURES AND FITTINGS,DISCOUNT STORES
25/09/2021,RECRUITMENT,INDEED TEL+35312545907,504.24,STAFF ADVERTISING ,BUSINESS SERVICES-NOT ELSEWHERE CLASSIFIED
27/09/2021,ORBIS HEAD OF PROCUREMENT,CARDEN PARK HOTEL,250.00,TRAINING EXPENSES EXTERNAL GENERAL,"LODGING-HOTELS,MOTELS,RESORTS-NOT CLASSIFIED"
27/09/2021,SE LAC AND LEAVING CARE,HOMEBASE.CO.UK,262.50,EQUIPMENT,HOME SUPPLY WAREHOUSE STORES
27/09/2021,KARIBU COMMUNITY HOME,SAINSBURYS.CO.UK,308.63,PURCHASE OF FOOD (RAW MATERIALS),"GROCERY STORES, SUPERMARKETS"
27/09/2021,TRANSPORT,WWW.WATSONFUELS.CO.UK,463.49,VEHICLE RUNNING COSTS,"FUEL DEALERS-COAL, FUEL OIL, LIQ PETROLEUM, WOOD"
27/09/2021,ACL CENTRAL EXPENDITURE,GOOGLE  ADS2777015041,500.00,PUBLICITY,ADVERTISING SERVICES
27/09/2021,SE EDUCATION PSYCHOLOGISTS,AMAZON.CO.UK 0B7K82395,537.13,CURRIC BOOKS,DIRECT MARKETING-OTHER DIRECT MARKETERS/NOT ELSEW.
27/09/2021,TRANSPORT,PAYPAL  FUELPROOFLT,"3,039.48",OPERATIONAL FIRE EQUIPMENT,"ACCOUNTING, AUDITING AND BOOKKEEPING SERVICES"
27/09/2021,SURREY FRS CAPITAL EQUIPMENT,PAYPAL  FUELPROOFLT,"3,039.48",CE03 CAPITAL VEHICLES AND PLANT,"ACCOUNTING, AUDITING AND BOOKKEEPING SERVICES"
28/09/2021,BARNFIELD,GATWICK,250.00,EQUIPMENT,ELECTRONIC SALES
28/09/2021,TRANSPORT,DRIVELINE (SCOTLAND),252.00,VEHICLE REPAIRS AND MAINTENANCE,"AUTO & TRUCK DLRS-SALES,SVC, REPRS,PRTS, & LEASING"
28/09/2021,BURBANK COMMUNITY HOME,SAINSBURYS.CO.UK,367.32,PURCHASE OF FOOD (RAW MATERIALS),"GROCERY STORES, SUPERMARKETS"
28/09/2021,TRANSPORT,FAIRALLS (BUILDERS MER,408.38,EQUIPMENT,CONSTRUCTION MATERIALS NOT ELSEWHERE CLASSIFIED
28/09/2021,JOINT EMERGENCY CONTROL CENTRE,AMZNMKTPLACE,413.94,TELECOMMUNICATION CHARGES,MISCELLANEOUS AND SPECIALTY RETAIL STORES
28/09/2021,PE/CDT MAINTENANCE OVERHEADS,BISHOPSPORT,414.96,ITEMS PURCHASED FOR RE-SALE,SPORTING GOODS STORES
28/09/2021,TRANSPORT,KINGACRE WOODCOTE GREE,612.00,DAY TO DAY MAINTENANCE,"BUILDING MATERIALS, LUMBER STORES"
28/09/2021,TRAINING AND DEVELOPMENT,TALL BLDG FIRE SAFETY,649.44,SUBSISTENCE AND CONFERENCE EXPENSES,COMPUTER SOFTWARE STORES
28/09/2021,ACL CENTRAL EXPENDITURE,FACEBK NSQ3M7K4H2,700.00,PUBLICITY,ADVERTISING SERVICES
29/09/2021,KESWICK,AMZNMKTPLACE,284.89,DAY TO DAY MAINTENANCE,MISCELLANEOUS AND SPECIALTY RETAIL STORES
29/09/2021,NE SECTION 17 CARE,TRAVELODGE GB0000,374.26,INDEPENDENT LIVING PLACEMENTS,TRAVELODGE
29/09/2021,NW SECTION 17 CARE,TRAVELODGE GB0000,412.00,INDEPENDENT LIVING PLACEMENTS,TRAVELODGE
29/09/2021,NE SECTION 17 CARE,TRAVELODGE GB0000,525.25,INDEPENDENT LIVING PLACEMENTS,TRAVELODGE
29/09/2021,NE CARE - LAC,ETIHAD AI6072141614125,990.37,OTHER COMMUNITY CARE VOL,ETIHAD AIRWAYS - ETIHADAIR
29/09/2021,SE CARE - CP & COURT LAC,WWW.SITU.CO.UK,"3,947.76",INDEPENDENT LIVING PLACEMENTS,"LODGING-HOTELS,MOTELS,RESORTS-NOT CLASSIFIED"
30/09/2021,THE ANNEX@84,GUILDFORD BOROUGH CNCL,253.50,DAY TO DAY MAINTENANCE,GOVERNMENT SERVICES-NOT ELSEWHERE CLASSIFIED
30/09/2021,SE SECTION 17 CARE,TRAVELODGE GB0000,255.94,INDEPENDENT LIVING PLACEMENTS,TRAVELODGE
30/09/2021,SOLD CENTRE IMPROVEMENT,MACMILLAN PUBLISHERS I,259.87,BOOKS,MISCELLANEOUS PUBLISHING AND PRINTING
30/09/2021,STUDENT PLACEMENT,VIVA ACCESS LTD,302.40,TRAINING EXPENSES EXTERNAL GENERAL,SCHOOLS & EDUCATIONAL SVC-NOT ELSEWHERE CLASSIFIED
30/09/2021,SOLD DAY TO DAY OPERATIONS,AMZNMKTPLACE,310.54,EQUIPMENT,MISCELLANEOUS AND SPECIALTY RETAIL STORES
30/09/2021,NE CARE - LAC,ETIHAD AI6071502934337,331.00,OTHER COMMUNITY CARE VOL,ETIHAD AIRWAYS - ETIHADAIR
30/09/2021,SE LAC AND LEAVING CARE,WWW.STEVENAGE.GOV.UK,333.00,INDEPENDENT LIVING PLACEMENTS,GOVERNMENT SERVICES-NOT ELSEWHERE CLASSIFIED
30/09/2021,TRANSPORT,CONDOR GROUP LTD,358.80,OPERATIONAL FIRE EQUIPMENT,"CLOCK, JEWELRY, AND WATCH REPAIR SHOPS"
30/09/2021,STUDENT PLACEMENT,VIVA ACCESS LTD,388.80,TRAINING EXPENSES EXTERNAL GENERAL,SCHOOLS & EDUCATIONAL SVC-NOT ELSEWHERE CLASSIFIED
30/09/2021,SE LAC AND LEAVING CARE,CRAWLEY BOROUGH COUNCI,434.51,OTHER COMMUNITY CARE VOL,AUTOMOBILE PARKING LOTS AND GARAGES
30/09/2021,TRANSPORT,COLLINS NETS LTD,478.80,OPERATIONAL FIRE EQUIPMENT,SPORTING GOODS STORES
30/09/2021,ACL CENTRAL EXPENDITURE,SKINNERS SHEDS LIMITED,525.00,EQUIPMENT,LAWN AND GARDEN SUPPLY STORES
30/09/2021,COM BUSINESS SUPPORT,PAYPAL  MITALCP2,700.00,EQUIPMENT,PROFESSIONAL SERVICES-NOT ELSEWHERE CLASSIFIED
30/09/2021,RECRUITMENT,HOO HOOTSUITE INC,712.80,STAFF ADVERTISING ,BUSINESS SERVICES-NOT ELSEWHERE CLASSIFIED
30/09/2021,LEGAL EXPENSES - CORPORATE GROUP,IPO,850.00,LEGAL EXPENSES,GOVERNMENT SERVICES-NOT ELSEWHERE CLASSIFIED
30/09/2021,RECRUITMENT,WWW.TRANSPORTXTRA.COM,"1,074.00",STAFF ADVERTISING ,BUSINESS SERVICES-NOT ELSEWHERE CLASSIFIED
30/09/2021,NW NIL RECOURSE TO PUBLIC FUNDS CARE,HOUSE OF FISHER LTD,"1,433.50",INDEPENDENT LIVING PLACEMENTS,"LODGING-HOTELS,MOTELS,RESORTS-NOT CLASSIFIED"
01/10/2021,APPLEWOOD,ASDA GROCERIES ONLINE,261.65,PURCHASE OF FOOD (RAW MATERIALS),"GROCERY STORES, SUPERMARKETS"
01/10/2021,SE LAC AND LEAVING CARE,IKEA LTD SHOP ONLINE,270.00,OTHER COMMUNITY CARE VOL,"EQUIP, FURNITURE, HOME FURNSHNGS STRS (EXCPT APPL)"
01/10/2021,COMMUNICATIONS,HAPPY LTD,270.00,TRAINING USING EXTERNAL PROVIDERS,SCHOOLS & EDUCATIONAL SVC-NOT ELSEWHERE CLASSIFIED
01/10/2021,RECRUITMENT,INDEED TEL+35312545907,427.96,STAFF ADVERTISING ,BUSINESS SERVICES-NOT ELSEWHERE CLASSIFIED
01/10/2021,TRANSPORT,WINDSCREEN FIXERS LTD,458.40,VEHICLE REPAIRS AND MAINTENANCE,AUTOMOTIVE SERVICE SHOPS
01/10/2021,TRANSPORT,WINDSCREEN FIXERS LTD,464.40,VEHICLE REPAIRS AND MAINTENANCE,AUTOMOTIVE SERVICE SHOPS
03/10/2021,YEAR 11-12 CONTRACTS,MOLE VALLEY PREMIE,286.00,CURRICULUM EQUIPMENT AND FURNITURE,LIMOUSINES AND TAXICABS
04/10/2021,RECRUITMENT,BATOD,252.00,STAFF ADVERTISING ,"ORGANIZATIONS, MEMBERSHIP-NOT ELSEWHERE CLASSIFIED"
04/10/2021,DOFE AND BEL EXPEDITIONS,AMZNMKTPLACE,255.92,CURRICULUM CONSUMABLES,MISCELLANEOUS AND SPECIALTY RETAIL STORES
04/10/2021,FIRE & RESCUE COMMUNITY SAFETY,AMZNMKTPLACE,257.07,EQUIPMENT,MISCELLANEOUS AND SPECIALTY RETAIL STORES
04/10/2021,LIBERTAS COMMUNITY HOME,NEXT DIRECTORY,273.99,EQUIPMENT,DIRECT MARKETING-COMBINATION CATALOG/RETAIL MERCH.
04/10/2021,ACCOMMODATION CLEANING AND REFURBISHMENT,IKEA LTD SHOP ONLINE,379.00,"CLOTHING, UNIFORM AND LAUNDRY","EQUIP, FURNITURE, HOME FURNSHNGS STRS (EXCPT APPL)"
04/10/2021,ROW MAINTENANCE,LAND SKILLS,417.06,TRAINING EXPENSES EXTERNAL GENERAL,SCHOOLS & EDUCATIONAL SVC-NOT ELSEWHERE CLASSIFIED
04/10/2021,ACL CENTRAL EXPENDITURE,FACEBK 5Q7GP7B4H2,700.00,PUBLICITY,ADVERTISING SERVICES
04/10/2021,WOODLANDS COMMUNITY HOME,OFSTED INTERNET,910.00,FEES,GOVERNMENT SERVICES-NOT ELSEWHERE CLASSIFIED
05/10/2021,WOKING CMHRS CARE,TRAVELODGE GB0000,317.16,FEES,TRAVELODGE
05/10/2021,RIGHTS & PARTICIPATION TEAM,INFORM PRINTED SOLUTIO,372.00,EDUC VISITS/HOLS/CAMPS/TOYS,MEN'S AND WOMEN'S CLOTHING STORES
05/10/2021,TRANSPORT,AO RETAIL LIMITED,449.00,EQUIPMENT,HOUSEHOLD APPLIANCE STORES
05/10/2021,TRANSPORT,AO RETAIL LIMITED,449.00,EQUIPMENT,HOUSEHOLD APPLIANCE STORES
05/10/2021,TRANSPORT,N/A,585.48,VEHICLE REPAIRS AND MAINTENANCE,INDUSTRIAL SUPPLIES NOT ELSEWHERE CLASSIFIED
05/10/2021,SE SECTION 17 CARE,WWW.SITU.CO.UK,989.80,INDEPENDENT LIVING PLACEMENTS,"LODGING-HOTELS,MOTELS,RESORTS-NOT CLASSIFIED"
05/10/2021,OCCUPATIONAL HEALTH,CFOA-NFCC,"1,440.00",TRAINING USING EXTERNAL PROVIDERS,"ORGANIZATIONS, CHARITABLE AND SOCIAL SERVICES"
05/10/2021,TRANSPORT,WWW.FTA.CO.UK,"1,570.80",VEHICLE REPAIRS AND MAINTENANCE,RAILROADS - FREIGHT
05/10/2021,PLD & AUTISM TEAM,C2E794900402P UKVI,"5,199.00",FEES,GOVERNMENT SERVICES-NOT ELSEWHERE CLASSIFIED
06/10/2021,EXTENDED HOPE,SAINSBURY'S S/MKTS,254.61,PURCHASE OF FOOD (RAW MATERIALS),"GROCERY STORES, SUPERMARKETS"
06/10/2021,DOWNLANDS COUNTRYSIDE PROJECT,DVLA VEHICLE TAX,277.50,VEHICLE RUNNING COSTS,TAX PAYMENTS
06/10/2021,BURBANK COMMUNITY HOME,SAINSBURYS.CO.UK,283.53,PURCHASE OF FOOD (RAW MATERIALS),"GROCERY STORES, SUPERMARKETS"
06/10/2021,COMMUNICATIONS TEAM,GOVERNMENT EVENTS,346.80,TRAINING USING EXTERNAL PROVIDERS,"THEATRICAL PRODUCERS(EXCL MOTION PIX),TICKET AGNCY"
06/10/2021,NE SECTION 17 CARE,TRAVELODGE GB0000,362.02,INDEPENDENT LIVING PLACEMENTS,TRAVELODGE
06/10/2021,ACL CENTRAL EXPENDITURE,PAYPAL  COOKSONGOLD,370.14,EQUIPMENT,"PRECIOUS STONES AND METALS, WATCHES AND JEWELRY"
06/10/2021,NW SECTION 17 CARE,TRAVELODGE GB0000,421.18,INDEPENDENT LIVING PLACEMENTS,TRAVELODGE
06/10/2021,CORE ACTIVITY                           ,CAPSULECRM.COM ZESTIA,446.40,COMPUTER SOFTWARE,DIRECT MARKETING-CONTINUITY/SUBSCRIPTION MERCHANTS
06/10/2021,ACL CENTRAL EXPENDITURE,PAYPAL  COOKSONGOLD,448.58,EQUIPMENT,"PRECIOUS STONES AND METALS, WATCHES AND JEWELRY"
06/10/2021,TRAINING AND DEVELOPMENT,GOVERNMENT EVENTS,466.80,SUBSISTENCE AND CONFERENCE EXPENSES,"THEATRICAL PRODUCERS(EXCL MOTION PIX),TICKET AGNCY"
06/10/2021,WEIGHT MANAGEMENT,AMZNMKTPLACE AMAZON.CO,478.00,EQUIPMENT,MISCELLANEOUS AND SPECIALTY RETAIL STORES
06/10/2021,ACL CENTRAL EXPENDITURE,UK EDUCATIONAL FURNITU,621.12,EQUIPMENT,"EQUIP, FURNITURE, HOME FURNSHNGS STRS (EXCPT APPL)"
06/10/2021,TRANSPORT,WKD STORAGE SYSTEMS LT,"1,249.20",FURNITURE,"PUBLIC WAREHOUSING-FARM, REFRIG GOODS, HHG STORAGE"
07/10/2021,ROW VOLUNTEERS EAST                     ,INCHCAPE TOYOTA/LEXUS,250.00,VEHICLE REPAIRS AND MAINTENANCE,"AUTOMOTIVE PARTS, ACCESSORIES STORES"
07/10/2021,ACCOMMODATION CLEANING AND REFURBISHMENT,AMZNMKTPLACE AMAZON.CO,268.12,"CLOTHING, UNIFORM AND LAUNDRY",MISCELLANEOUS AND SPECIALTY RETAIL STORES
07/10/2021,COUNRTYSIDE ESTATES TEAM,INCHCAPE TOYOTA/LEXUS,283.98,VEHICLE REPAIRS AND MAINTENANCE,"AUTOMOTIVE PARTS, ACCESSORIES STORES"
07/10/2021,COUNRTYSIDE ESTATES TEAM,INCHCAPE TOYOTA/LEXUS,283.98,VEHICLE REPAIRS AND MAINTENANCE,"AUTOMOTIVE PARTS, ACCESSORIES STORES"
07/10/2021,RUTH HOUSE,W M MORRISONS.COM,310.36,PURCHASE OF FOOD (RAW MATERIALS),"GROCERY STORES, SUPERMARKETS"
07/10/2021,TRANSPORT,CATERING HYGIENE,343.99,EQUIPMENT,"COMMERCIAL EQUIPMENT, NOT ELSEWHERE CLASSIFIED"
07/10/2021,DOWNLANDS COUNTRYSIDE PROJECT,ENTERPRISE,510.00,HIRE OF VEHICLES,AUTOMOBILE RENTAL AGENCY-NOT ELSEWHERE CLASSIFIED
07/10/2021,DOWNLANDS COUNTRYSIDE PROJECT,ENTERPRISE,510.00,HIRE OF VEHICLES,AUTOMOBILE RENTAL AGENCY-NOT ELSEWHERE CLASSIFIED
07/10/2021,DOWNLANDS COUNTRYSIDE PROJECT,ENTERPRISE,510.00,HIRE OF VEHICLES,AUTOMOBILE RENTAL AGENCY-NOT ELSEWHERE CLASSIFIED
07/10/2021,WELLS HOUSE,WWW.RDO.CO.UK,585.00,EQUIPMENT,HOUSEHOLD APPLIANCE STORES
07/10/2021,WELLS HOUSE,WWW.RDO.CO.UK,585.00,EQUIPMENT,HOUSEHOLD APPLIANCE STORES
07/10/2021,SERVICE DELIVERY RESOURCES,DE VERE CRANAGE ESTATE,720.00,EQUIPMENT,"LODGING-HOTELS,MOTELS,RESORTS-NOT CLASSIFIED"
07/10/2021,SERVICE DELIVERY RESOURCES,CANNON MOTOR TOOLS,898.56,CLEANING MATERIALS,AUTOMOTIVE SERVICE SHOPS
07/10/2021,ACL CENTRAL EXPENDITURE,UK EDUCATIONAL FURNITU,"1,361.28",EQUIPMENT,"EQUIP, FURNITURE, HOME FURNSHNGS STRS (EXCPT APPL)"
07/10/2021,ASSET DATA MANAGER,WWW.THOMASTELFORD.ORG.,"2,393.00",COMPUTER SOFTWARE,MISCELLANEOUS PUBLISHING AND PRINTING
07/10/2021,ASSET DATA MANAGER,WWW.THOMASTELFORD.ORG.,"5,000.00",COMPUTER SOFTWARE,MISCELLANEOUS PUBLISHING AND PRINTING
07/10/2021,ASSET DATA MANAGER,WWW.THOMASTELFORD.ORG.,"5,000.00",COMPUTER SOFTWARE,MISCELLANEOUS PUBLISHING AND PRINTING
08/10/2021,SOLD DAY TO DAY OPERATIONS,WWW.QUICKSARCHERY.CO.U,277.10,EQUIPMENT,MISCELLANEOUS AND SPECIALTY RETAIL STORES
08/10/2021,FIRE & RESCUE COMMUNITY SAFETY,CRUMBS SANDWICH & COFF,414.60,CATERING FIRE,FAST FOOD RESTAURANTS
08/10/2021,NE SECTION 17 CARE,TRAVELODGE GB0000,436.48,INDEPENDENT LIVING PLACEMENTS,TRAVELODGE
08/10/2021,ACL CENTRAL EXPENDITURE,GOOGLE  ADS2777015041,500.00,PUBLICITY,ADVERTISING SERVICES
08/10/2021,TRAINING AND DEVELOPMENT,THE ROYAL MARITIME CLU,602.10,TRAINING EXPENSES EXTERNAL GENERAL,"LODGING-HOTELS,MOTELS,RESORTS-NOT CLASSIFIED"
08/10/2021,COM BUSINESS SUPPORT,PAYPAL  MITALCP2,750.00,EQUIPMENT,PROFESSIONAL SERVICES-NOT ELSEWHERE CLASSIFIED
08/10/2021,COM BUSINESS SUPPORT,PAYPAL  MITALCP2,750.00,EQUIPMENT,PROFESSIONAL SERVICES-NOT ELSEWHERE CLASSIFIED
08/10/2021,WOKING CMHRS CARE,PREMIER INN44015905,795.93,FEES,PREMIER INN
08/10/2021,SW NON -LAC,HAVEN HOLIDAYS,818.55,OTHER COMMUNITY CARE VOL,CAMPGROUNDS AND TRAILER PARKS
09/10/2021,COM BUSINESS SUPPORT,PAYPAL  MITALCP2,500.00,EQUIPMENT,PROFESSIONAL SERVICES-NOT ELSEWHERE CLASSIFIED
09/10/2021,ACL CENTRAL EXPENDITURE,WWW.HEARTINTERNET.COM,515.99,SUBSCRIPTIONS,COMPUTER NETWORK/INFORMATION SERVICES
09/10/2021,TRAINING AND DEVELOPMENT,CROWNHOTEL-LYNDHUR,576.00,TRAINING EXPENSES EXTERNAL GENERAL,"LODGING-HOTELS,MOTELS,RESORTS-NOT CLASSIFIED"
09/10/2021,ACL CENTRAL EXPENDITURE,FACEBK 7GEL87K3H2,700.00,PUBLICITY,ADVERTISING SERVICES
10/10/2021,ACL CENTRAL EXPENDITURE,HOO HOOTSUITE INC,316.51,PUBLICITY,BUSINESS SERVICES-NOT ELSEWHERE CLASSIFIED
10/10/2021,WEIGHT MANAGEMENT,AMZNMKTPLACE,382.40,EQUIPMENT,MISCELLANEOUS AND SPECIALTY RETAIL STORES
10/10/2021,RECRUITMENT,INDEED TEL+35312545907,518.64,STAFF ADVERTISING ,BUSINESS SERVICES-NOT ELSEWHERE CLASSIFIED
11/10/2021,NE TEACHERS,AMAZON.CO.UK RE6DL7ZL5,254.63,CURRIC BOOKS,DIRECT MARKETING-OTHER DIRECT MARKETERS/NOT ELSEW.
11/10/2021,IMT CRITICAL ENVIRONMENTS,SETON,279.19,COMPUTER HARDWARE,"DURABLE GOODS, NOT ELSEWHERE CLASSIFIED"
11/10/2021,PORTAGE SERVICE (SE),AMZNMKTPLACE,281.08,EQUIPMENT,MISCELLANEOUS AND SPECIALTY RETAIL STORES
11/10/2021,LOWER MOLE COUNTRYSIDE PROJECT,DVLA VEHICLE TAX,282.50,VEHICLE RUNNING COSTS,TAX PAYMENTS
11/10/2021,INSTRUMENT HIRE SHOP,WWW.ALDAUTOMOTIVE.CO.U,297.97,HIRE OF VEHICLES,BUSINESS SERVICES-NOT ELSEWHERE CLASSIFIED
11/10/2021,CHALKMEAD,AMZNMKTPLACE,335.89,DAY TO DAY MAINTENANCE,MISCELLANEOUS AND SPECIALTY RETAIL STORES
11/10/2021,SECTOR MANAGER,FAYE (UK) LTD,342.00,ITEMS PURCHASED FOR RE-SALE,MEN'S AND WOMEN'S CLOTHING STORES
11/10/2021,SOLD CENTRE IMPROVEMENT,WWW.JOHNLEWIS.COM,350.00,EQUIPMENT,DEPARTMENT STORES
11/10/2021,PORTAGE SERVICE (SE),AMZNMKTPLACE AMAZON.CO,358.29,EQUIPMENT,MISCELLANEOUS AND SPECIALTY RETAIL STORES
11/10/2021,COUNRTYSIDE ESTATES TEAM,GUILDFORD BOROUGH CNCL,418.00,LICENCE FEES,GOVERNMENT SERVICES-NOT ELSEWHERE CLASSIFIED
11/10/2021,NE TEACHERS,AMAZON.CO.UK J41SO7DW5,568.06,CURRIC BOOKS,DIRECT MARKETING-OTHER DIRECT MARKETERS/NOT ELSEW.
11/10/2021,NE TEACHERS,AMAZON.CO.UK 3P8AH3XY5,963.78,BOOKS,DIRECT MARKETING-OTHER DIRECT MARKETERS/NOT ELSEW.
12/10/2021,NE SECTION 17 CARE,TRAVELODGE GB0000,268.23,INDEPENDENT LIVING PLACEMENTS,TRAVELODGE
12/10/2021,SAFER TRAVEL TEAM,EB  MODESHIFT ANNUAL C,270.09,TRAINING USING EXTERNAL PROVIDERS,BUSINESS SERVICES-NOT ELSEWHERE CLASSIFIED
12/10/2021,TRANSPORT,WWW.ERONOMICS.CO.,294.00,MEDICAL EXPENSES,OFFICE AND COMMERCIAL FURNITURE
12/10/2021,COMMUNICATIONS TEAM,PAYPAL  LGCOMMS2018,300.00,SUBSCRIPTIONS,"ORGANIZATIONS, MEMBERSHIP-NOT ELSEWHERE CLASSIFIED"
12/10/2021,FAIRMOUNT HOUSE LEATHERHEAD,WWW.IDCARDCENTRE.CO.UK,306.77,EQUIPMENT,MISCELLANEOUS PUBLISHING AND PRINTING
12/10/2021,HIGHWAY DESIGN & DELIVERY,AMZNMKTPLACE AMAZON.CO,358.98,EQUIPMENT,MISCELLANEOUS AND SPECIALTY RETAIL STORES
12/10/2021,ACL CENTRAL EXPENDITURE,WWW.ONESTOPCLEANINGSHO,366.33,EQUIPMENT,"SANITATION, POLISHING & SPECIALITY CLEANING PREP"
12/10/2021,ACL CENTRAL EXPENDITURE,WWW.ONESTOPCLEANINGSHO,366.33,EQUIPMENT,"SANITATION, POLISHING & SPECIALITY CLEANING PREP"
12/10/2021,NE SECTION 17 CARE,TRAVELODGE GB0000,399.81,INDEPENDENT LIVING PLACEMENTS,TRAVELODGE
12/10/2021,FAIRCROFT COMMUNITY HOME,SYKES COTTAGES,404.00,EDUC VISITS/HOLS/CAMPS/TOYS,"LODGING-HOTELS,MOTELS,RESORTS-NOT CLASSIFIED"
12/10/2021,DEVELOPMENT TEAM,MSFT  <E0100FYY3M>,480.16,SUBSCRIPTIONS,"COMPUTERS, COMPUTER PERIPHERAL EQUIPMENT, SOFTWARE"
12/10/2021,ACL CENTRAL EXPENDITURE,FIN TRAINING & DEV,"1,080.00",TRAINING EXPENSES EXTERNAL GENERAL,SCHOOLS & EDUCATIONAL SVC-NOT ELSEWHERE CLASSIFIED
12/10/2021,TRANSPORT,PAYPAL  NICK,"1,246.20",VEHICLE REPAIRS AND MAINTENANCE,PROFESSIONAL SERVICES-NOT ELSEWHERE CLASSIFIED
12/10/2021,DEVELOPMENT TEAM,WWW.TXTLOCAL.COM,"1,260.00",SUBSCRIPTIONS,"CONSULTING, MANAGEMENT, AND PUBLIC RELATIONS SVCS"
12/10/2021,SERVICE DELIVERY RESOURCES,THE MYERSBRIGGS COMPAN,"2,506.50",TRAINING EXPENSES EXTERNAL GENERAL,BUSINESS SERVICES-NOT ELSEWHERE CLASSIFIED
13/10/2021,MISC EDCAT SUPPORT,QMS INTERNATIONAL LTD,269.70,CONSULTANTS,BUSINESS SERVICES-NOT ELSEWHERE CLASSIFIED
13/10/2021,SEN TRANSPORT,AMZNMKTPLACE AMAZON.CO,269.70,EQUIPMENT,MISCELLANEOUS AND SPECIALTY RETAIL STORES
13/10/2021,BURBANK COMMUNITY HOME,SAINSBURYS.CO.UK,311.86,PURCHASE OF FOOD (RAW MATERIALS),"GROCERY STORES, SUPERMARKETS"
13/10/2021,DEVELOPMENT TEAM,MSFT  <E0100FZ7WX>,353.41,SUBSCRIPTIONS,"COMPUTERS, COMPUTER PERIPHERAL EQUIPMENT, SOFTWARE"
13/10/2021,NE SECTION 17 CARE,TRAVELODGE GB0000,491.55,INDEPENDENT LIVING PLACEMENTS,TRAVELODGE
13/10/2021,RECRUITMENT,INDEED TEL+35312545907,531.04,STAFF ADVERTISING ,BUSINESS SERVICES-NOT ELSEWHERE CLASSIFIED
14/10/2021,RUTH HOUSE,W M MORRISONS.COM,264.76,PURCHASE OF FOOD (RAW MATERIALS),"GROCERY STORES, SUPERMARKETS"
14/10/2021,PE/CDT MAINTENANCE OVERHEADS,WWW.CONCEPT2.CO.UK,289.99,ITEMS PURCHASED FOR RE-SALE,SPORTING GOODS STORES
14/10/2021,FAIRCROFT COMMUNITY HOME,SYKES COTTAGES,404.00,EDUC VISITS/HOLS/CAMPS/TOYS,"LODGING-HOTELS,MOTELS,RESORTS-NOT CLASSIFIED"
14/10/2021,NW SECTION 17 CARE,TRAVELODGE GB0000,447.70,INDEPENDENT LIVING PLACEMENTS,TRAVELODGE
14/10/2021,SE CARE - LAC,WWW.ANYVAN.COM,477.00,HIRE OF VEHICLES,"FREIGHT CARRIER,TRUCKING-LCL/LNG DIST, MVG/STORAGE"
14/10/2021,KESWICK,AO RETAIL LIMITED,498.00,EQUIPMENT,HOUSEHOLD APPLIANCE STORES
14/10/2021,ACL CENTRAL EXPENDITURE,FACEBK UM8UC7K3H2,540.24,PUBLICITY,ADVERTISING SERVICES
14/10/2021,ACCESS PROGRAMMES,CASIO ELECTRONICS,903.00,EQUIPMENT,"CLOCK, JEWELRY, AND WATCH REPAIR SHOPS"
15/10/2021,RIGHTS & PARTICIPATION TEAM,THORPE PARK,254.50,EDUC VISITS/HOLS/CAMPS/TOYS,"THEATRICAL PRODUCERS(EXCL MOTION PIX),TICKET AGNCY"
15/10/2021,COM BUSINESS SUPPORT,PAYPAL  MITALCP2,300.00,EQUIPMENT,PROFESSIONAL SERVICES-NOT ELSEWHERE CLASSIFIED
15/10/2021,NE SECTION 17 CARE,TRAVELODGE GB0000,300.35,INDEPENDENT LIVING PLACEMENTS,TRAVELODGE
15/10/2021,TRANSPORT,OXFORD SAFETY SUPPLIES,472.80,"CLOTHING, UNIFORM AND LAUNDRY",MEN'S/WOMEN'S/CHILDREN'S UNIFORMS/COMMERCIAL CLOTH
15/10/2021,FAIRCROFT COMMUNITY HOME,AIRBNB   HM2BX3WKNR,473.62,EDUC VISITS/HOLS/CAMPS/TOYS,"LODGING-HOTELS,MOTELS,RESORTS-NOT CLASSIFIED"
15/10/2021,RECRUITMENT,INDEED TEL+35312545907,503.33,STAFF ADVERTISING ,BUSINESS SERVICES-NOT ELSEWHERE CLASSIFIED
15/10/2021,FIRE & RESCUE COMMUNITY SAFETY,FIXINGS & POWERTOOL CE,701.64,EQUIPMENT,"BUILDING MATERIALS, LUMBER STORES"
15/10/2021,WOKING CMHRS CARE,PREMIER INN44015905,807.93,FEES,PREMIER INN
15/10/2021,TRANSPORT,NORTHERN DIVER (INTNL),"2,229.60",OPERATIONAL FIRE EQUIPMENT,SPORTING GOODS STORES
16/10/2021,ACL CENTRAL EXPENDITURE,GOOGLE  ADS2777015041,500.00,PUBLICITY,ADVERTISING SERVICES
16/10/2021,COMMUNICATIONS,FACEBK XV7ZS5FYA2,700.00,PUBLICITY,ADVERTISING SERVICES
17/10/2021,RECRUITMENT,INDEED TEL+35312545907,503.56,STAFF ADVERTISING ,BUSINESS SERVICES-NOT ELSEWHERE CLASSIFIED
18/10/2021,CHEYNE WALK COMMUNITY HOME,AMZNMKTPLACE,285.42,EQUIPMENT,MISCELLANEOUS AND SPECIALTY RETAIL STORES
18/10/2021,RECRUITMENT,GOVERNMENT EVENTS,466.80,STAFF ADVERTISING ,"THEATRICAL PRODUCERS(EXCL MOTION PIX),TICKET AGNCY"
18/10/2021,FAIRCROFT COMMUNITY HOME,AIRBNB   HMMC8DTRME,847.82,EDUC VISITS/HOLS/CAMPS/TOYS,"LODGING-HOTELS,MOTELS,RESORTS-NOT CLASSIFIED"
18/10/2021,BIKEABILITY - CYCLE TRAINING,THE BIKEABILITY TRUST,"2,553.96",EQUIPMENT,STATIONERY/OFFICE SUPPLIES/PRINTING & WRITING PAP.
19/10/2021,YOUTH OFFER SERVICE,AMZNMKTPLACE,303.62,EQUIPMENT,MISCELLANEOUS AND SPECIALTY RETAIL STORES
19/10/2021,HIGHWAY DESIGN & DELIVERY,THOMAS TELFORD LIMIT,390.00,TRAINING EXPENSES EXTERNAL GENERAL,PROFESSIONAL SERVICES-NOT ELSEWHERE CLASSIFIED
19/10/2021,RECRUITMENT,INDEED TEL+35312545907,513.93,STAFF ADVERTISING ,BUSINESS SERVICES-NOT ELSEWHERE CLASSIFIED
19/10/2021,ACL CENTRAL EXPENDITURE,FACEBK E9WYP834H2,700.00,PUBLICITY,ADVERTISING SERVICES
20/10/2021,STREETWORKS TEAM,AMZNMKTPLACE,254.29,EQUIPMENT,MISCELLANEOUS AND SPECIALTY RETAIL STORES
20/10/2021,PE/CDT MAINTENANCE OVERHEADS,WWW.TECHSOFT.CO.UK,340.80,ITEMS PURCHASED FOR RE-SALE,"ARTIST SUPPLY STORES, CRAFT SHOPS"
20/10/2021,KARIBU COMMUNITY HOME,ENCORE TICKETS LTD,432.00,EDUC VISITS/HOLS/CAMPS/TOYS,"THEATRICAL PRODUCERS(EXCL MOTION PIX),TICKET AGNCY"
20/10/2021,NW SECTION 17 CARE,TRAVELODGE GB0000,441.58,INDEPENDENT LIVING PLACEMENTS,TRAVELODGE
20/10/2021,TRANSPORT,DRIVELINE (SCOTLAND),756.00,VEHICLE REPAIRS AND MAINTENANCE,"AUTO & TRUCK DLRS-SALES,SVC, REPRS,PRTS, & LEASING"
21/10/2021,THE ANNEX@84,ENCORE TICKETS LTD,276.00,EDUC VISITS/HOLS/CAMPS/TOYS,"THEATRICAL PRODUCERS(EXCL MOTION PIX),TICKET AGNCY"
21/10/2021,DOWNLANDS COUNTRYSIDE PROJECT,OMLET  OMLET ORDER #11,338.21,EQUIPMENT,PET SHOPS - PET FOODS AND SUPPLIES
21/10/2021,NE SECTION 17 CARE,TRAVELODGE GB0000,439.54,INDEPENDENT LIVING PLACEMENTS,TRAVELODGE
21/10/2021,RECRUITMENT,INDEED TEL+35312545907,500.72,STAFF ADVERTISING ,BUSINESS SERVICES-NOT ELSEWHERE CLASSIFIED
21/10/2021,WOKING CMHRS CARE,PREMIER INN44015905,507.95,OTHER COMMUNITY CARE PRIV,PREMIER INN
21/10/2021,TRANSPORT,WWW.FTA.CO.UK,810.00,SUBSCRIPTIONS,RAILROADS - FREIGHT
21/10/2021,DOWNLANDS COUNTRYSIDE PROJECT,OMLET  OMLET ORDER #11,849.00,EQUIPMENT,PET SHOPS - PET FOODS AND SUPPLIES
21/10/2021,SW FAMILY SAFEGUARDING,C2E796500091A UKVI,"3,199.00",FEES,GOVERNMENT SERVICES-NOT ELSEWHERE CLASSIFIED
21/10/2021,NW FAMILY SAFEGUARDING,C2E796500066E UKVI,"3,199.00",FEES,GOVERNMENT SERVICES-NOT ELSEWHERE CLASSIFIED
21/10/2021,ACT,HOGREFE LTD.,"4,469.90",BOOKS,MISCELLANEOUS PUBLISHING AND PRINTING
22/10/2021,PE/CDT MAINTENANCE OVERHEADS,MARGNOR FASTENERS LIMI,273.38,EQUIPMENT,INDUSTRIAL SUPPLIES NOT ELSEWHERE CLASSIFIED
22/10/2021,NE SECTION 17 CARE,TRAVELODGE GB0000,362.06,INDEPENDENT LIVING PLACEMENTS,TRAVELODGE
22/10/2021,EARLY YEARS NEEDS,WWW.RYMAN.CO.UK,463.94,EQUIPMENT,"OFFICE, SCHOOL SUPPLY, AND STATIONERY STORES"
22/10/2021,ACL CENTRAL EXPENDITURE,GOOGLE  ADS2777015041,500.00,PUBLICITY,ADVERTISING SERVICES
23/10/2021,COMMUNICATIONS,SPOTIFY,250.00,PUBLICITY,DIGITAL GOODS AUDIOVISUAL MEDIA
23/10/2021,COMMUNICATIONS,FACEBK ZAFH57BZA2,287.58,PUBLICITY,ADVERTISING SERVICES
25/10/2021,NE TEACHERS,AMAZON.CO.UK G50WQ2635,332.91,CHILDREN ACT SEC 17 PAYMENTS,DIRECT MARKETING-OTHER DIRECT MARKETERS/NOT ELSEW.
25/10/2021,NE SECTION 17 CARE,TRAVELODGE GB0922,458.46,INDEPENDENT LIVING PLACEMENTS,TRAVELODGE
25/10/2021,RECRUITMENT,INDEED TEL+35312545907,504.45,STAFF ADVERTISING ,BUSINESS SERVICES-NOT ELSEWHERE CLASSIFIED
25/10/2021,TRANSPORT,AST AYLESBURY LTD,563.99,VEHICLE REPAIRS AND MAINTENANCE,AUTOMOTIVE SERVICE SHOPS
25/10/2021,KESWICK HOUSE,JACOBS,668.50,COUNCIL TAX,"CONSULTING, MANAGEMENT, AND PUBLIC RELATIONS SVCS"
26/10/2021,YOUTH OFFER SERVICE,SOUTHERN SHEETING SUPP,259.13,UPKEEP OF GROUNDS,"BUILDING MATERIALS, LUMBER STORES"
26/10/2021,SOLD ESTATES MANAGEMENT,C AND  A BUILDING PROD,277.38,DAY TO DAY MAINTENANCE,HOME SUPPLY WAREHOUSE STORES
26/10/2021,SURREY LEADER PROGRAMME (SEEDA),WWW.PRINTERLAND.CO,310.00,COMPUTER SERVICES,"COMP PROGRAMING,DATA PRCSNG,INTGRTD SYS DSGN SRVS"
26/10/2021,DAKOTA,AMZNMKTPLACE,361.93,EQUIPMENT,MISCELLANEOUS AND SPECIALTY RETAIL STORES
26/10/2021,WOKING CMHRS CARE,PREMIER INN44015905,394.45,OTHER COMMUNITY CARE PRIV,PREMIER INN
26/10/2021,DOWNLANDS COUNTRYSIDE PROJECT,SAFETY GLOVES,430.50,EQUIPMENT,DENTAL/LAB/MED/OPHTHALMIC HOSP EQUIP & SUPPLIES
26/10/2021,SOLD ESTATES MANAGEMENT,SPEEDY FUELS LIMITED,484.31,VEHICLE RUNNING COSTS,"FUEL DEALERS-COAL, FUEL OIL, LIQ PETROLEUM, WOOD"
26/10/2021,KESWICK,AO RETAIL LIMITED,498.00,EQUIPMENT,HOUSEHOLD APPLIANCE STORES
26/10/2021,KESWICK,AO RETAIL LIMITED,498.00,EQUIPMENT,HOUSEHOLD APPLIANCE STORES
27/10/2021,RECRUITMENT,BD&E/HEMMING GROUP,300.00,STAFF ADVERTISING ,MISCELLANEOUS PUBLISHING AND PRINTING
27/10/2021,TRANSPORT,LIGHTHOUSE (UK) LTD,330.00,VEHICLE REPAIRS AND MAINTENANCE,MISCELLANEOUS PUBLISHING AND PRINTING
27/10/2021,APPLEWOOD,GAINSBOROUGH BATHS LIM,401.40,EQUIPMENT,MISCELLANEOUS AND SPECIALTY RETAIL STORES
28/10/2021,YOUTH OFFER SERVICE,SWRAILWAY TCK OFF,292.05,STUDENT FARE CARD (STUDENTFARECARDRAIL),PASSENGER RAILWAYS
28/10/2021,NE SECTION 17 CARE,TRAVELODGE GB0000,389.56,INDEPENDENT LIVING PLACEMENTS,TRAVELODGE
28/10/2021,NW SECTION 17 CARE,TRAVELODGE GB0000,421.18,INDEPENDENT LIVING PLACEMENTS,TRAVELODGE
28/10/2021,RECRUITMENT,INDEED TEL+35312545907,507.69,STAFF ADVERTISING ,BUSINESS SERVICES-NOT ELSEWHERE CLASSIFIED
28/10/2021,SOLD ESTATES MANAGEMENT,PLUMBNATION LTD,522.00,EQUIPMENT,HARDWARE EQUIPMENT AND SUPPLIES
28/10/2021,TRANSPORT,WWW.ERONOMICS.CO.,781.80,FURNITURE,OFFICE AND COMMERCIAL FURNITURE
28/10/2021,SE FAMILY SAGEUARDING,C2E797200133Z UKVI,"3,199.00",FEES,GOVERNMENT SERVICES-NOT ELSEWHERE CLASSIFIED
29/10/2021,FAIRMOUNT HOUSE LEATHERHEAD,WEL MEDICAL LIMITED ON,259.20,EQUIPMENT,"HEALTH PRACTITIONERS, MEDICAL SRVCS-NOT ELSEWHERE"
29/10/2021,NE SECTION 17 CARE,TRAVELODGE GB0000,487.51,INDEPENDENT LIVING PLACEMENTS,TRAVELODGE
29/10/2021,MALLOW CRESCENT,OAKFURNITURELAND.CO.UK,489.98,FURNITURE,"EQUIP, FURNITURE, HOME FURNSHNGS STRS (EXCPT APPL)"
29/10/2021,MALLOW CRESCENT,OAKFURNITURELAND.CO.UK,500.00,FURNITURE,"EQUIP, FURNITURE, HOME FURNSHNGS STRS (EXCPT APPL)"
30/10/2021,ACL CENTRAL EXPENDITURE,GOOGLE  ADS2777015041,500.00,PUBLICITY,ADVERTISING SERVICES
30/10/2021,RECRUITMENT,INDEED TEL+35312545907,510.76,STAFF ADVERTISING ,BUSINESS SERVICES-NOT ELSEWHERE CLASSIFIED
30/10/2021,SURREY ARTS GENERAL,SOUNDTRAP,579.90,SUBSCRIPTIONS,"COMPUTERS, COMPUTER PERIPHERAL EQUIPMENT, SOFTWARE"
31/10/2021,ACL CENTRAL EXPENDITURE,FACEBK DDQJW8F3H2,700.00,PUBLICITY,ADVERTISING SERVICES
01/11/2021,CHALKMEAD,CURRYS ONLINE,259.98,EQUIPMENT,ELECTRONIC SALES
01/11/2021,RUTH HOUSE,W M MORRISONS.COM,309.67,PURCHASE OF FOOD (RAW MATERIALS),"GROCERY STORES, SUPERMARKETS"
01/11/2021,RECRUITMENT,INDEED TEL+35312545907,311.96,STAFF ADVERTISING ,BUSINESS SERVICES-NOT ELSEWHERE CLASSIFIED
01/11/2021,WOODLANDS COMMUNITY HOME,ARGOS LTD,413.99,EQUIPMENT,DISCOUNT STORES
01/11/2021,TRANSPORT,WWW.WATSONFUELS.CO.UK,529.06,VEHICLE RUNNING COSTS,"FUEL DEALERS-COAL, FUEL OIL, LIQ PETROLEUM, WOOD"
02/11/2021,RIGHTS & PARTICIPATION TEAM,HATTY'S SWEET SHOP,250.00,EDUC VISITS/HOLS/CAMPS/TOYS,"CANDY, NUT, CONFECTIONERY STORES"
02/11/2021,TRANSPORT,PAYPAL  EBAY UK,311.74,EQUIPMENT,DEPARTMENT STORES
02/11/2021,PE/CDT MAINTENANCE OVERHEADS,INDUSTRIAL RUBBER,432.00,EQUIPMENT,MISCELLANEOUS AND SPECIALTY RETAIL STORES
02/11/2021,SECTOR MANAGER,WWW.REXLONDONTRADE.COM,519.79,ITEMS PURCHASED FOR RE-SALE,"GIFT, CARD, NOVELTY AND SOUVENIR SHOPS"
02/11/2021,WOODHATCH,SCREWFIX DIRECT,742.14,EQUIPMENT,"BUILDING MATERIALS, LUMBER STORES"
02/11/2021,RIGHTS & PARTICIPATION TEAM,INFORM PRINTED SOLUTIO,990.60,EQUIPMENT,MEN'S AND WOMEN'S CLOTHING STORES
02/11/2021,RIGHTS & PARTICIPATION TEAM,INFORM PRINTED SOLUTIO,"1,254.00",EQUIPMENT,MEN'S AND WOMEN'S CLOTHING STORES
02/11/2021,DEMOCRATIC SERVICES TEAM,WWW.ICO.ORG.UK,"2,900.00",SUBSCRIPTIONS,GOVERNMENT SERVICES-NOT ELSEWHERE CLASSIFIED
03/11/2021,BURBANK COMMUNITY HOME,SAINSBURYS.CO.UK,309.19,PURCHASE OF FOOD (RAW MATERIALS),"GROCERY STORES, SUPERMARKETS"
03/11/2021,HIGHWAY DESIGN & DELIVERY,THOMAS TELFORD LIMIT,390.00,TRAINING EXPENSES EXTERNAL GENERAL,PROFESSIONAL SERVICES-NOT ELSEWHERE CLASSIFIED
03/11/2021,NW SECTION 17 CARE,TRAVELODGE GB0000,395.68,INDEPENDENT LIVING PLACEMENTS,TRAVELODGE
03/11/2021,KARIBU COMMUNITY HOME,BRM COACHWORKS LTD,450.00,VEHICLE REPAIRS AND MAINTENANCE,AUTOMOTIVE BODY REPAIR SHOPS
03/11/2021,DOWNLANDS COUNTRYSIDE PROJECT,FR JONES AND SON,479.94,EQUIPMENT,HARDWARE STORES
03/11/2021,KARIBU COMMUNITY HOME,BRM COACHWORKS LTD,500.00,VEHICLE REPAIRS AND MAINTENANCE,AUTOMOTIVE BODY REPAIR SHOPS
03/11/2021,RECRUITMENT,INDEED TEL+35312545907,502.02,STAFF ADVERTISING ,BUSINESS SERVICES-NOT ELSEWHERE CLASSIFIED
03/11/2021,WOKING CMHRS CARE,PREMIER INN44015905,574.93,OTHER COMMUNITY CARE PRIV,PREMIER INN
03/11/2021,COMMUNICATIONS TEAM,HAYMARKET MEDIA GROUP,594.00,TRAINING EXPENSES EXTERNAL GENERAL,"CONSULTING, MANAGEMENT, AND PUBLIC RELATIONS SVCS"
03/11/2021,COMMUNICATIONS TEAM,HAYMARKET MEDIA GROUP,594.00,TRAINING EXPENSES EXTERNAL GENERAL,"CONSULTING, MANAGEMENT, AND PUBLIC RELATIONS SVCS"
03/11/2021,PE/CDT MAINTENANCE OVERHEADS,WWW.EXPERTFITNESSUK.CO,610.80,ITEMS PURCHASED FOR RE-SALE,SPORTING GOODS STORES
03/11/2021,TRAINING AND DEVELOPMENT,THE ROYAL MARITIME CLU,835.65,TRAINING EXPENSES EXTERNAL GENERAL,"LODGING-HOTELS,MOTELS,RESORTS-NOT CLASSIFIED"
03/11/2021,SOLD CENTRE IMPROVEMENT,SP   INDOOR OUTDOORS,"1,920.00",EQUIPMENT,"EQUIP, FURNITURE, HOME FURNSHNGS STRS (EXCPT APPL)"
04/11/2021,YOUTH OFFER SERVICE,FIXINGS & POWERTOOL CE,263.06,EQUIPMENT,"BUILDING MATERIALS, LUMBER STORES"
04/11/2021,PE/CDT MAINTENANCE OVERHEADS,PAYPAL  NK LTD,290.76,EQUIPMENT,MISCELLANEOUS HOUSE FURNISHING SPECIALTY SHOPS
04/11/2021,SECTOR MANAGER,FAYE (UK) LTD,324.00,ITEMS PURCHASED FOR RE-SALE,MEN'S AND WOMEN'S CLOTHING STORES
04/11/2021,RECRUITMENT,INDEED TEL+35312545907,516.28,STAFF ADVERTISING ,BUSINESS SERVICES-NOT ELSEWHERE CLASSIFIED
04/11/2021,SOLD CENTRE IMPROVEMENT,PAYPAL  EDISONHOUSE HE,573.59,FIXTURES AND FITTINGS,HOUSEHOLD APPLIANCE STORES
05/11/2021,CHAIRMAN,JOLLYBROLLY,330.00,EQUIPMENT,WOMEN'S ACCESSORY AND SPECIALTY STORES
05/11/2021,NE SECTION 17 CARE,TRAVELODGE GB0000,348.77,INDEPENDENT LIVING PLACEMENTS,TRAVELODGE
05/11/2021,INSTRUMENT HIRE SHOP,KENT MUSIC,350.00,EQUIPMENT,SCHOOLS & EDUCATIONAL SVC-NOT ELSEWHERE CLASSIFIED
05/11/2021,THE BOTHY NORBURY ESTATE,WWW.BRITISHGAS.CO.,365.34,ELECTRICITY,"UTLTS-ELCTRC, GAS, HEATING OIL, SANITARY, WATER"
05/11/2021,TRANSPORT,IKEA LTD SHOP ONLINE,400.00,FURNITURE,"EQUIP, FURNITURE, HOME FURNSHNGS STRS (EXCPT APPL)"
05/11/2021,NE SECTION 17 CARE,TRAVELODGE GB0000,471.19,INDEPENDENT LIVING PLACEMENTS,TRAVELODGE
05/11/2021,TRANSPORT,ELIO AULETTA SOT LTD N,500.00,VEHICLE REPAIRS AND MAINTENANCE,HARDWARE STORES
05/11/2021,TRANSPORT,ELIO AULETTA SOT LTD N,640.75,VEHICLE REPAIRS AND MAINTENANCE,HARDWARE STORES
05/11/2021,TRANSPORT,ELIO AULETTA SOT LTD N,"1,000.00",VEHICLE REPAIRS AND MAINTENANCE,HARDWARE STORES
06/11/2021,CORE ACTIVITY                           ,CAPSULECRM.COM ZESTIA,446.40,EQUIPMENT,DIRECT MARKETING-CONTINUITY/SUBSCRIPTION MERCHANTS
07/11/2021,RECRUITMENT,INDEED TEL+35312545907,504.18,STAFF ADVERTISING ,BUSINESS SERVICES-NOT ELSEWHERE CLASSIFIED
08/11/2021,SOLD ESTATES MANAGEMENT,NATIONAL TRUST,272.92,FEES,"MARINAS, MARINE SERVICE/SUPPLIES"
08/11/2021,RUTH HOUSE,W M MORRISONS.COM,284.41,PURCHASE OF FOOD (RAW MATERIALS),"GROCERY STORES, SUPERMARKETS"
08/11/2021,CORP CAPITAL MAINT,THAMES WATER WEB,330.00,CE02 WORKS,"UTLTS-ELCTRC, GAS, HEATING OIL, SANITARY, WATER"
08/11/2021,ASSET PLANNING - OPERATIONS,AUTOGLASS,484.90,VEHICLE REPAIRS AND MAINTENANCE,"AUTOMOTIVE PARTS, ACCESSORIES STORES"
08/11/2021,SE SECTION 17 CARE,WWW.SITU.CO.UK,703.15,INDEPENDENT LIVING PLACEMENTS,"LODGING-HOTELS,MOTELS,RESORTS-NOT CLASSIFIED"
08/11/2021,NW NIL RECOURSE TO PUBLIC FUNDS CARE,HOUSE OF FISHER LTD,717.50,INDEPENDENT LIVING PLACEMENTS,"LODGING-HOTELS,MOTELS,RESORTS-NOT CLASSIFIED"
08/11/2021,RECRUITMENT,WWW.BUILDING4JOBS.COM,720.00,STAFF ADVERTISING ,ADVERTISING SERVICES
09/11/2021,DOWNLANDS COUNTRYSIDE PROJECT,JCM LOCKSMITHS LTD,252.12,EQUIPMENT,HARDWARE STORES
09/11/2021,CHEYNE WALK COMMUNITY HOME,AMZNMKTPLACE,307.85,EQUIPMENT,MISCELLANEOUS AND SPECIALTY RETAIL STORES
09/11/2021,WOODLANDS COMMUNITY HOME,GEAR4MUSIC,339.00,EDUC VISITS/HOLS/CAMPS/TOYS,"MUSIC STORES-INSTRUMENTS, PIANOS, SHEET MUSIC"
09/11/2021,TRANSPORT,NORTHERN DIVER (INTNL),388.20,OPERATIONAL FIRE EQUIPMENT,SPORTING GOODS STORES
09/11/2021,NE SECTION 17 CARE,TRAVELODGE GB0000,433.46,INDEPENDENT LIVING PLACEMENTS,TRAVELODGE
09/11/2021,ACL CENTRAL EXPENDITURE,GOOGLE  ADS2777015041,500.00,PUBLICITY,ADVERTISING SERVICES
09/11/2021,RECRUITMENT,INDEED TEL+35312545907,511.42,STAFF ADVERTISING ,BUSINESS SERVICES-NOT ELSEWHERE CLASSIFIED
09/11/2021,FIRE & RESCUE COMMUNITY SAFETY,AMZNMKTPLACE AMAZON.CO,789.20,EQUIPMENT,MISCELLANEOUS AND SPECIALTY RETAIL STORES
09/11/2021,TRANSPORT,RS COMPONENTS,977.52,OPERATIONAL FIRE EQUIPMENT,ELECTRICAL PARTS AND EQUIPMENT
10/11/2021,FOSTERING SERVICE CENTRAL COSTS,WWW.VOUCHEREXPRESS.CO.,255.75,STATIONERY,"GIFT, CARD, NOVELTY AND SOUVENIR SHOPS"
10/11/2021,COUNTYWIDE MANAGED PRINT SERVICE,EBAY COMMERCE UK LTD,258.00,PHOTOCOPIER MACHINES AND MATERIALS,DEPARTMENT STORES
10/11/2021,ACT,PAYPAL  TIOFP,264.00,TRAINING USING EXTERNAL PROVIDERS,"CONSULTING, MANAGEMENT, AND PUBLIC RELATIONS SVCS"
10/11/2021,ACT,PAYPAL  TIOFP,264.00,TRAINING USING EXTERNAL PROVIDERS,"CONSULTING, MANAGEMENT, AND PUBLIC RELATIONS SVCS"
10/11/2021,BURBANK COMMUNITY HOME,SAINSBURYS.CO.UK,339.14,PURCHASE OF FOOD (RAW MATERIALS),"GROCERY STORES, SUPERMARKETS"
10/11/2021,NW SECTION 17 CARE,TRAVELODGE GB0000,386.43,INDEPENDENT LIVING PLACEMENTS,TRAVELODGE
10/11/2021,RUTH HOUSE,WWW.FOWLESSKIPHIRE.COM,390.00,EQUIPMENT,BUSINESS SERVICES-NOT ELSEWHERE CLASSIFIED
10/11/2021,YOUTH OFFER SERVICE,GORDON FARLEY MOTO,399.00,VEHICLE REPAIRS AND MAINTENANCE,MOTORCYCLE SHOPS AND DEALERS
10/11/2021,FOSTERING SERVICE CENTRAL COSTS,WWW.VOUCHEREXPRESS.CO.,455.75,STATIONERY,"GIFT, CARD, NOVELTY AND SOUVENIR SHOPS"
10/11/2021,FOSTERING SERVICE CENTRAL COSTS,WWW.VOUCHEREXPRESS.CO.,455.75,STATIONERY,"GIFT, CARD, NOVELTY AND SOUVENIR SHOPS"
10/11/2021,HR LEADERSHIP DEVELOPMENT,DRI GALLUP,500.00,TRAINING EXPENSES EXTERNAL GENERAL,COMPUTER SOFTWARE STORES
10/11/2021,FOSTERING SERVICE CENTRAL COSTS,WWW.VOUCHEREXPRESS.CO.,505.75,STATIONERY,"GIFT, CARD, NOVELTY AND SOUVENIR SHOPS"
10/11/2021,FOSTERING SERVICE CENTRAL COSTS,WWW.VOUCHEREXPRESS.CO.,505.75,STATIONERY,"GIFT, CARD, NOVELTY AND SOUVENIR SHOPS"
10/11/2021,NE SECTION 17 CARE,TRAVELODGE GB0000,523.16,INDEPENDENT LIVING PLACEMENTS,TRAVELODGE
10/11/2021,ACT,PAYPAL  TIOFP,564.00,TRAINING USING EXTERNAL PROVIDERS,"CONSULTING, MANAGEMENT, AND PUBLIC RELATIONS SVCS"
10/11/2021,ACT,PAYPAL  TIOFP,564.00,TRAINING USING EXTERNAL PROVIDERS,"CONSULTING, MANAGEMENT, AND PUBLIC RELATIONS SVCS"
10/11/2021,TRANSPORT,AMZNMKTPLACE AMAZON.CO,574.75,OPERATIONAL FIRE EQUIPMENT,MISCELLANEOUS AND SPECIALTY RETAIL STORES
10/11/2021,HIGHWAY DESIGN & DELIVERY,THOMAS TELFORD LIMIT,"1,716.00",BOOKS,PROFESSIONAL SERVICES-NOT ELSEWHERE CLASSIFIED
11/11/2021,MH AMHP SERVICE EAST,PETERBOROUGH COUNTY CO,300.00,LEGAL EXPENSES,FINES
11/11/2021,RUTH HOUSE,W M MORRISONS.COM,333.41,PURCHASE OF FOOD (RAW MATERIALS),"GROCERY STORES, SUPERMARKETS"
11/11/2021,ACL CENTRAL EXPENDITURE,PAYPAL  METALCLAY,378.85,EQUIPMENT,"ARTIST SUPPLY STORES, CRAFT SHOPS"
11/11/2021,DOWNLANDS COUNTRYSIDE PROJECT,SPLIT - EQUIPMENT (92.09%),524.20,EQUIPMENT,AUTOMOTIVE TIRE STORES
11/11/2021,WOKING CMHRS CARE,TRAVELODGE GB0000,535.43,OTHER COMMUNITY CARE PRIV,TRAVELODGE
11/11/2021,ASC COMMUNICATION & ENGAGEMENT TEAM,HOO HOOTSUITE INC,561.60,COMPUTER SOFTWARE,BUSINESS SERVICES-NOT ELSEWHERE CLASSIFIED
12/11/2021,YOUTH OFFER SERVICE,AMZNMKTPLACE,288.22,CURRICULUM CONSUMABLES,MISCELLANEOUS AND SPECIALTY RETAIL STORES
12/11/2021,SOLD,AMZNMKTPLACE,341.69,EQUIPMENT,MISCELLANEOUS AND SPECIALTY RETAIL STORES
12/11/2021,DEVELOPMENT TEAM,MSFT   E0100GBL12,464.35,SUBSCRIPTIONS,"COMPUTERS, COMPUTER PERIPHERAL EQUIPMENT, SOFTWARE"
12/11/2021,ACT,PEARSON ED LTD,466.50,BOOKS,SCHOOLS & EDUCATIONAL SVC-NOT ELSEWHERE CLASSIFIED
12/11/2021,NE SECTION 17 CARE,TRAVELODGE GB0000,501.79,INDEPENDENT LIVING PLACEMENTS,TRAVELODGE
12/11/2021,RECRUITMENT,INDEED TEL+35312545907,519.43,STAFF ADVERTISING ,BUSINESS SERVICES-NOT ELSEWHERE CLASSIFIED
12/11/2021,YOUTH OFFER SERVICE,SCREWFIX DIRECT,"1,109.96",EQUIPMENT,"BUILDING MATERIALS, LUMBER STORES"
13/11/2021,DEVELOPMENT TEAM,MSFT   E0100GC2TX,352.80,SUBSCRIPTIONS,"COMPUTERS, COMPUTER PERIPHERAL EQUIPMENT, SOFTWARE"
14/11/2021,JOINT EMERGENCY CONTROL CENTRE,AMAZON.CO.UK UI41P9NF5,250.00,FURNITURE,DIRECT MARKETING-OTHER DIRECT MARKETERS/NOT ELSEW.
14/11/2021,JOINT EMERGENCY CONTROL CENTRE,AMAZON.CO.UK XS4443HJ5,250.00,FURNITURE,DIRECT MARKETING-OTHER DIRECT MARKETERS/NOT ELSEW.
14/11/2021,RECRUITMENT,INDEED TEL+35312545907,503.47,STAFF ADVERTISING ,BUSINESS SERVICES-NOT ELSEWHERE CLASSIFIED
14/11/2021,ACL CENTRAL EXPENDITURE,FACEBK ZNEC49F4H2,510.84,PUBLICITY,ADVERTISING SERVICES
15/11/2021,RIGHTS & PARTICIPATION TEAM,HATTY'S SWEET SHOP,250.00,EDUC VISITS/HOLS/CAMPS/TOYS,"CANDY, NUT, CONFECTIONERY STORES"
15/11/2021,KARIBU COMMUNITY HOME,SAINSBURYS.CO.UK,262.57,PURCHASE OF FOOD (RAW MATERIALS),"GROCERY STORES, SUPERMARKETS"
15/11/2021,TRANSPORT,POWER TOOL CENTRE,299.68,VEHICLE REPAIRS AND MAINTENANCE,HARDWARE STORES
15/11/2021,TRANSPORT,RESPIRATORY PROTECTIVE,654.00,VEHICLE REPAIRS AND MAINTENANCE,MEN'S/WOMEN'S/CHILDREN'S UNIFORMS/COMMERCIAL CLOTH
15/11/2021,THAMES YOUNG MARINERS HAM,RICHMOND,846.50,COUNCIL TAX,GOVERNMENT SERVICES-NOT ELSEWHERE CLASSIFIED
15/11/2021,HR - CENTRALISED TRAINING BUDGET(CONTGY),HAYMARKET MEDIA GROUP,888.00,SUBSISTENCE AND CONFERENCE EXPENSES,"CONSULTING, MANAGEMENT, AND PUBLIC RELATIONS SVCS"
15/11/2021,JOINT EMERGENCY CONTROL CENTRE,ANDREWS OFFICE,"1,182.80",FURNITURE,"OFFICE, SCHOOL SUPPLY, AND STATIONERY STORES"
15/11/2021,JOINT EMERGENCY CONTROL CENTRE,WWW.OFFICEBOFFINS.CO.U,"1,768.80",FURNITURE,"EQUIP, FURNITURE, HOME FURNSHNGS STRS (EXCPT APPL)"
16/11/2021,TRANSPORT,AMZNMKTPLACE,257.94,OPERATIONAL FIRE EQUIPMENT,MISCELLANEOUS AND SPECIALTY RETAIL STORES
16/11/2021,LOWER MOLE COUNTRYSIDE PROJECT,ERNEST DOE  SONS,267.46,EQUIPMENT,MISC/AUTO/AIRCRAFT/FARM EQUIP NOT ELSEWHERE CLASS
16/11/2021,SOLD DAY TO DAY OPERATIONS,CRAGGY ISLAND,324.00,VENUE COSTS (INCLUDING HIRE OF ROOMS),"CLUBS-CNTRY,MBRSHIP(ATHLET,REC,SPRTS,PRIVATE GOLF"
16/11/2021,NW SECTION 17 CARE,TRAVELODGE GB0000,352.84,INDEPENDENT LIVING PLACEMENTS,TRAVELODGE
16/11/2021,BIRCHLANDS,WWW.FOWLESSKIPHIRE.COM,366.00,DAY TO DAY MAINTENANCE,BUSINESS SERVICES-NOT ELSEWHERE CLASSIFIED
16/11/2021,RUTH HOUSE,AO RETAIL LIMITED,438.00,EQUIPMENT,HOUSEHOLD APPLIANCE STORES
16/11/2021,DOWNLANDS COUNTRYSIDE PROJECT,HARDTOPSUKSHOP.CO,444.00,VEHICLE RUNNING COSTS,"AUTOMOTIVE PARTS, ACCESSORIES STORES"
16/11/2021,TRANSPORT,SECURITYSAFETYPRODUCTS,541.03,EQUIPMENT,HARDWARE EQUIPMENT AND SUPPLIES
16/11/2021,TRANSPORT,HYDRAULIC FLEET SOLUTI,606.00,VEHICLE REPAIRS AND MAINTENANCE,"ARCHITECTURAL, ENGINEERING, AND SURVEYING SERVICES"
16/11/2021,LIBERTAS COMMUNITY HOME,CURRYS ONLINE,929.99,EQUIPMENT,ELECTRONIC SALES
16/11/2021,RECRUITMENT,HEMMING GROUP,"3,600.00",STAFF ADVERTISING ,MISCELLANEOUS PUBLISHING AND PRINTING
17/11/2021,BURBANK COMMUNITY HOME,SAINSBURYS.CO.UK,297.98,PURCHASE OF FOOD (RAW MATERIALS),"GROCERY STORES, SUPERMARKETS"
17/11/2021,JOINT EMERGENCY CONTROL CENTRE,WWW.OFFICEBOFFINS.CO.U,482.40,FURNITURE,"EQUIP, FURNITURE, HOME FURNSHNGS STRS (EXCPT APPL)"
17/11/2021,RECRUITMENT,INDEED TEL+35312545907,533.84,STAFF ADVERTISING ,BUSINESS SERVICES-NOT ELSEWHERE CLASSIFIED
17/11/2021,PROPERTY OPERATIONS TEAM,VITALSOURCE,638.96,SUBSCRIPTIONS,DIGITAL GOODS AUDIOVISUAL MEDIA
17/11/2021,TRANSPORT,MEDIMARKSCI,"1,234.21",OPERATIONAL FIRE EQUIPMENT,VETERINARY SERVICES
18/11/2021,AP & AR ORBIS NORTH,AMZNMKTPLACE AMAZON.CO,349.69,EQUIPMENT,MISCELLANEOUS AND SPECIALTY RETAIL STORES
18/11/2021,NE SECTION 17 CARE,TRAVELODGE GB0000,436.52,INDEPENDENT LIVING PLACEMENTS,TRAVELODGE
18/11/2021,TRANSPORT,WWW.COMMERCIALHANGERS.,468.00,EQUIPMENT,MISCELLANEOUS AND SPECIALTY RETAIL STORES
18/11/2021,TRANSPORT,PAYPAL  REALLYUSEFU,502.33,OPERATIONAL FIRE EQUIPMENT,MISCELLANEOUS HOUSE FURNISHING SPECIALTY SHOPS
18/11/2021,SE TARGETTED YOUTH SUPPORT,R AND P AUTOS LTD,576.22,VEHICLE REPAIRS AND MAINTENANCE,AUTOMOTIVE SERVICE SHOPS
19/11/2021,APPLEWOOD,ASDA GROCERIES ONLINE,253.58,PURCHASE OF FOOD (RAW MATERIALS),"GROCERY STORES, SUPERMARKETS"
19/11/2021,S.D. EAST AREA MANAGEMENT TEAM,CARLO AND SONS,270.00,REFRESHMENT COSTS,"MISC FOOD STORE-CONVENIENCE,MRKT,SPLTY,VENDNG MACS"
19/11/2021,LOCAL DELIVERY GROUP,AMZNMKTPLACE AMAZON.CO,326.97,EQUIPMENT,MISCELLANEOUS AND SPECIALTY RETAIL STORES
19/11/2021,TRANSPORT,WKD STORAGE SYSTEMS LT,372.00,OPERATIONAL FIRE EQUIPMENT,"PUBLIC WAREHOUSING-FARM, REFRIG GOODS, HHG STORAGE"
19/11/2021,SOCIAL CARE TRAINING,REMARKABLE,448.00,EQUIPMENT,ELECTRONIC SALES
19/11/2021,,TRAVELODGE GB0000,505.82,INDEPENDENT LIVING PLACEMENTS,TRAVELODGE
19/11/2021,SERVICE DELIVERY RESOURCES,SCHOOL BOTTLE,549.00,OPERATIONAL FIRE EQUIPMENT,MISCELLANEOUS AND SPECIALTY RETAIL STORES
19/11/2021,WOKING CMHRS CARE,SPLIT -EW HOTEL ACCOM EW328957 (98.04%),610.93,OTHER COMMUNITY CARE PRIV,TRAVELODGE
22/11/2021,INSTRUMENT HIRE SHOP,PASS  PORTABLE APPLIAN,384.00,EQUIPMENT,TESTING LABORATORIES (NON-MEDICAL)
22/11/2021,NE SECTION 17 CARE,TRAVELODGE GB0000,480.38,INDEPENDENT LIVING PLACEMENTS,TRAVELODGE
22/11/2021,ACL CENTRAL EXPENDITURE,GOOGLE  ADS2777015041,500.00,PUBLICITY,ADVERTISING SERVICES
22/11/2021,RECRUITMENT,INDEED TEL+35312545907,502.57,STAFF ADVERTISING ,BUSINESS SERVICES-NOT ELSEWHERE CLASSIFIED
22/11/2021,RIGHTS & PARTICIPATION TEAM,MASH MEDIA GROUP LTD,"6,600.00",VENUE COSTS (INCLUDING HIRE OF ROOMS),BUSINESS SERVICES-NOT ELSEWHERE CLASSIFIED
23/11/2021,LIBERTAS COMMUNITY HOME,BENTLEY BROWN CATERING,252.90,EQUIPMENT,"EQUIPMENT RENTAL&LEASING SVS, FURNTURE/TOOL RENTAL"
23/11/2021,TRANSPORT,NO1 PACKAGING,401.10,OPERATIONAL FIRE EQUIPMENT,"OFFICE, SCHOOL SUPPLY, AND STATIONERY STORES"
23/11/2021,PE/CDT MAINTENANCE OVERHEADS,BEARINGS AND BELTS,410.40,ITEMS PURCHASED FOR RE-SALE,"ARCHITECTURAL, ENGINEERING, AND SURVEYING SERVICES"
23/11/2021,MALLOW CRESCENT,WWW.HILLARYS.CO.UK,458.06,EQUIPMENT,"DRAPERY, UPOLSTERY, AND WINDOW COVERINGS STORES"
23/11/2021,RUTH HOUSE,DUNELM,489.94,FURNITURE,"EQUIP, FURNITURE, HOME FURNSHNGS STRS (EXCPT APPL)"
23/11/2021,SEN ADAPTATIONS IN SCHOOLS,KENT MOBILITY LTD,522.00,EQUIPMENT,SCHOOLS & EDUCATIONAL SVC-NOT ELSEWHERE CLASSIFIED
23/11/2021,PE/CDT MAINTENANCE OVERHEADS,GLADSTONE ENGINEERING-,525.00,ITEMS PURCHASED FOR RE-SALE,ART DEALERS AND GALLERIES
23/11/2021,RUTH HOUSE,MADE.COM,717.00,FURNITURE,"EQUIP, FURNITURE, HOME FURNSHNGS STRS (EXCPT APPL)"
23/11/2021,HAF,TOMY UK CO LTD,"10,965.74",EQUIPMENT,"GAME, TOY, AND HOBBY SHOPS"
24/11/2021,BURBANK COMMUNITY HOME,SAINSBURYS.CO.UK,253.79,PURCHASE OF FOOD (RAW MATERIALS),"GROCERY STORES, SUPERMARKETS"
24/11/2021,SE LAC AND LEAVING CARE,WWW.BEDS.CO.UK,269.00,OTHER COMMUNITY CARE VOL,"EQUIP, FURNITURE, HOME FURNSHNGS STRS (EXCPT APPL)"
24/11/2021,COMMUNICATIONS,FACEBK  VBUTF7FZA2,300.00,PUBLICITY,ADVERTISING SERVICES
24/11/2021,NW SECTION 17 CARE,TRAVELODGE GB0000,347.74,INDEPENDENT LIVING PLACEMENTS,TRAVELODGE
24/11/2021,LOCAL DELIVERY GROUP,HALFORDS ON LINE,398.00,EQUIPMENT,BICYCLE SHOPS-SALES AND SERVICE
24/11/2021,SERVICE DELIVERY RESOURCES,CAREBIT  HUM,600.00,MEDICAL EXPENSES,"DOCTORS, (NOT ELSEWHERE CLASSIFIED)"
24/11/2021,RIGHTS & PARTICIPATION TEAM,ROYAL BRITISH LEGION I,894.00,EDUC VISITS/HOLS/CAMPS/TOYS,"ORGANIZATIONS, CHARITABLE AND SOCIAL SERVICES"
24/11/2021,RIGHTS & PARTICIPATION TEAM,ROYAL BRITISH LEGION I,894.00,EDUC VISITS/HOLS/CAMPS/TOYS,"ORGANIZATIONS, CHARITABLE AND SOCIAL SERVICES"
25/11/2021,COMMUNICATIONS,FACEBK  5L7JTBPYA2,267.95,PUBLICITY,ADVERTISING SERVICES
25/11/2021,SPLASH PROJECT,SP   ROOTSPLANTS,270.00,CURRICULUM EQUIPMENT AND FURNITURE,MISCELLANEOUS AND SPECIALTY RETAIL STORES
25/11/2021,MISC EDCAT SUPPORT,WWW.CIMAGLOBAL.COM,306.00,FEES,"COLLEGES, UNIV, PRO SCHOOLS, JUNIOR COLLEGES"
25/11/2021,LOCAL DELIVERY GROUP,WWW.ARCO.CO.UK,315.67,"CLOTHING, UNIFORM AND LAUNDRY",INDUSTRIAL SUPPLIES NOT ELSEWHERE CLASSIFIED
25/11/2021,,ARGOS LTD,350.00,OTHER COMMUNITY CARE VOL,DISCOUNT STORES
25/11/2021,TRAINING AND DEVELOPMENT,THE ROYAL MARITIME CLU,501.75,TRAINING EXPENSES EXTERNAL GENERAL,"LODGING-HOTELS,MOTELS,RESORTS-NOT CLASSIFIED"
25/11/2021,NHS HEALTH CHECKS,SP   ALIVECOR UK,534.00,EQUIPMENT,MISCELLANEOUS AND SPECIALTY RETAIL STORES
25/11/2021,WOKING CMHRS CARE,SPLIT -EW HOTEL ACCOM EW328957 (98.04%),606.93,OTHER COMMUNITY CARE VOL,TRAVELODGE
25/11/2021,DOWNLANDS COUNTRYSIDE PROJECT,SPLIT - (95.19%),891.33,VEHICLE REPAIRS AND MAINTENANCE,AUTOMOTIVE TIRE STORES
25/11/2021,TRANSPORT,THREADNEEDLE COMPANY L,"4,062.83","CLOTHING, UNIFORM AND LAUNDRY",MEN'S AND WOMEN'S CLOTHING STORES
26/11/2021,RUTH HOUSE,SAINSBURY'S S/MKT,260.60,"CLOTHING, UNIFORM AND LAUNDRY","GROCERY STORES, SUPERMARKETS"
26/11/2021,MISC EDCAT SUPPORT,QMS INTERNATIONAL LTD,269.70,CONSULTANTS,BUSINESS SERVICES-NOT ELSEWHERE CLASSIFIED
26/11/2021,CHEYNE WALK COMMUNITY HOME,IKEA LTD 144 CROYDON M,274.50,FIXTURES AND FITTINGS,"EQUIP, FURNITURE, HOME FURNSHNGS STRS (EXCPT APPL)"
26/11/2021,TARGETED INTERVENTION,ACCOUNTANCY LEARNING,299.00,EDUC VISITS/HOLS/CAMPS/TOYS,SCHOOLS & EDUCATIONAL SVC-NOT ELSEWHERE CLASSIFIED
26/11/2021,,THE RANGE,432.18,,MISCELLANEOUS HOUSE FURNISHING SPECIALTY SHOPS
26/11/2021,RECRUITMENT,INDEED TEL+35312545907,503.28,,BUSINESS SERVICES-NOT ELSEWHERE CLASSIFIED
26/11/2021,NE NIL RECOURSE TO PUBLIC FUNDS CARE,TRAVELODGE GB0000,618.00,INDEPENDENT LIVING PLACEMENTS,TRAVELODGE
26/11/2021,TRANSPORT,INTRAMARK LIMITED,"2,782.39","CLOTHING, UNIFORM AND LAUNDRY",NONDURABLE GOODS (NOT ELSEWHERE CLASSIFIED)
27/11/2021,COUNTYWIDE MANAGED PRINT SERVICE,CARTRIDGE SAVE,327.10,PRINTING,STATIONERY/OFFICE SUPPLIES/PRINTING & WRITING PAP.
28/11/2021,CHEYNE WALK COMMUNITY HOME,AMZNMKTPLACE AMAZON.CO,298.92,FURNITURE,MISCELLANEOUS AND SPECIALTY RETAIL STORES
29/11/2021,KARIBU COMMUNITY HOME,SAINSBURYS.CO.UK,328.08,PURCHASE OF FOOD (RAW MATERIALS),"GROCERY STORES, SUPERMARKETS"
29/11/2021,TRANSPORT,PAYPAL  NICK,363.00,VEHICLE REPAIRS AND MAINTENANCE,PROFESSIONAL SERVICES-NOT ELSEWHERE CLASSIFIED
29/11/2021,RECRUITMENT,GOVERNMENT EVENTS,383.04,,"THEATRICAL PRODUCERS(EXCL MOTION PIX),TICKET AGNCY"
29/11/2021,NE CARE - LAC,VOUCHER EXPRESS,505.50,OTHER COMMUNITY CARE VOL,BUSINESS SERVICES-NOT ELSEWHERE CLASSIFIED
29/11/2021,HR - CENTRALISED TRAINING BUDGET(CONTGY),IPROW.CO.UK,886.80,TRAINING EXPENSES EXTERNAL GENERAL,"ORGANIZATIONS, MEMBERSHIP-NOT ELSEWHERE CLASSIFIED"
29/11/2021,"NE REF, ASS & INT SERVICE - HUB 1",C2E800400076A UKVI,"3,199.00",FEES,GOVERNMENT SERVICES-NOT ELSEWHERE CLASSIFIED
29/11/2021,NW FAMILY SAFEGUARDING,C2E800400042L UKVI,"3,199.00",FEES,GOVERNMENT SERVICES-NOT ELSEWHERE CLASSIFIED
29/11/2021,NE FAMILY SAFEGUARDING,C2E800400027D UKVI,"3,199.00",FEES,GOVERNMENT SERVICES-NOT ELSEWHERE CLASSIFIED
30/11/2021,WOODLANDS COMMUNITY HOME,PROVISIONS (81.36%),263.55,PURCHASE OF FOOD (RAW MATERIALS),"GROCERY STORES, SUPERMARKETS"
30/11/2021,TRANSPORT,TAIL LIFT SERVICES,374.40,VEHICLE REPAIRS AND MAINTENANCE,AUTOMOTIVE BODY REPAIR SHOPS
30/11/2021,RECRUITMENT,INDEED TEL+35312545907,501.26,,BUSINESS SERVICES-NOT ELSEWHERE CLASSIFIED
30/11/2021,FIRE & RESCUE COMMUNITY SAFETY,WHITE RIBBON UK,870.00,FEES,"ASSOCIATIONS-CIVIC, SOCIAL, AND FRATERNAL"
30/11/2021,RECRUITMENT,SPACEHOUSE LTD,900.00,,BUSINESS SERVICES-NOT ELSEWHERE CLASSIFIED
30/11/2021,YSS YOUTH CENTRE IMPROVEMENTS,POWERTOOL WORLD,"1,017.85",EQUIPMENT,HARDWARE EQUIPMENT AND SUPPLIES
30/11/2021,COM BUSINESS SUPPORT,CDER GROUP LIMITED.,"1,524.00",FEES,AUTOMOBILE PARKING LOTS AND GARAGES
01/12/2021,VIRTUAL SCHOOL FOR LAC PUPIL PREMIUM,WESTMINSTER FORUM PROJ,252.00,TRAINING EXPENSES EXTERNAL GENERAL,"CONSULTING, MANAGEMENT, AND PUBLIC RELATIONS SVCS"
01/12/2021,BURBANK COMMUNITY HOME,SAINSBURYS.CO.UK,282.21,PURCHASE OF FOOD (RAW MATERIALS),"GROCERY STORES, SUPERMARKETS"
01/12/2021,SCHOOLS PROGRAMS,DRI LENOVO,299.99,COMPUTER HARDWARE,COMPUTER SOFTWARE STORES
01/12/2021,DOWNLANDS COUNTRYSIDE PROJECT,WICKES BUILDING,318.00,EQUIPMENT,"BUILDING MATERIALS, LUMBER STORES"
01/12/2021,DOWNLANDS COUNTRYSIDE PROJECT,SAINSBURYS SMKTS,329.00,DAY TO DAY MAINTENANCE,"GROCERY STORES, SUPERMARKETS"
01/12/2021,NW SECTION 17 CARE,TRAVELODGE GB0000,363.04,INDEPENDENT LIVING PLACEMENTS,TRAVELODGE
01/12/2021,STRATEGIC NETWORK RESILIENCE,WWW.CIRIA.ORG,420.00,,BUSINESS SERVICES-NOT ELSEWHERE CLASSIFIED
01/12/2021,YSS YOUTH CENTRE IMPROVEMENTS,POWERTOOL WORLD,447.00,EQUIPMENT,HARDWARE EQUIPMENT AND SUPPLIES
01/12/2021,SE LAC AND LEAVING CARE,EBAY COMMERCE UK LTD,514.99,OTHER COMMUNITY CARE VOL,DEPARTMENT STORES
02/12/2021,RUTH HOUSE,W M MORRISONS.COM,258.57,PURCHASE OF FOOD (RAW MATERIALS),"GROCERY STORES, SUPERMARKETS"
02/12/2021,TRANSPORT,NORTHERN DIVER (INTNL),288.60,OPERATIONAL FIRE EQUIPMENT,SPORTING GOODS STORES
02/12/2021,WOKING CMHRS CARE,TRAVELODGE GB0000,614.98,OTHER COMMUNITY CARE PRIV,TRAVELODGE
03/12/2021,LEGAL SUPPORT TEAM,WWW.THELAWSOCIETY.ORG,306.00,,"ORGANIZATIONS, MEMBERSHIP-NOT ELSEWHERE CLASSIFIED"
03/12/2021,NW LAC AND LEAVING CARE,ARGOS LTD,307.25,OTHER COMMUNITY CARE VOL,DISCOUNT STORES
03/12/2021,MENTAL HEALTH MANAGEMENT TEAM,SPLIT -CP322456 HOTEL ACCOM (99.45%),452.18,OTHER COMMUNITY CARE PRIV,TRAVELODGE
03/12/2021,ACL CENTRAL EXPENDITURE,GOOGLE  ADS2777015041,500.00,PUBLICITY,ADVERTISING SERVICES
03/12/2021,TRAINING AND DEVELOPMENT,WWW.TRAININGBYTESIZE.C,658.80,,COMPUTER SOFTWARE STORES
03/12/2021,TRAINING AND DEVELOPMENT,WWW.SEMESTERLEARNING.C,"1,699.00",,SCHOOLS & EDUCATIONAL SVC-NOT ELSEWHERE CLASSIFIED
05/12/2021,ACT,PEARSON ED LTD,"1,876.66",TRAINING USING EXTERNAL PROVIDERS,SCHOOLS & EDUCATIONAL SVC-NOT ELSEWHERE CLASSIFIED
06/12/2021,CORE ACTIVITY                           ,CAPSULECRM.COM ZESTIA,432.00,COMPUTER SOFTWARE,DIRECT MARKETING-CONTINUITY/SUBSCRIPTION MERCHANTS
06/12/2021,RECRUITMENT,INDEED TEL+35312545907,501.11,,BUSINESS SERVICES-NOT ELSEWHERE CLASSIFIED
06/12/2021,TRANSPORT,CALLANCOTE LTD,912.00,OPERATIONAL FIRE EQUIPMENT,INDUSTRIAL SUPPLIES NOT ELSEWHERE CLASSIFIED
07/12/2021,NW SECTION 17 CARE,TRAVELODGE GB0000,322.24,INDEPENDENT LIVING PLACEMENTS,TRAVELODGE
07/12/2021,ACL CENTRAL EXPENDITURE,GOOGLE  ADS2777015041,500.00,PUBLICITY,ADVERTISING SERVICES
08/12/2021,NE CARE - LAC,VOUCHER EXPRESS,250.00,OTHER COMMUNITY CARE VOL,BUSINESS SERVICES-NOT ELSEWHERE CLASSIFIED
08/12/2021,NE CARE - LAC,VOUCHER EXPRESS,250.00,OTHER COMMUNITY CARE VOL,BUSINESS SERVICES-NOT ELSEWHERE CLASSIFIED
08/12/2021,SECTOR MANAGER,FAYE (UK) LTD,325.87,ITEMS PURCHASED FOR RE-SALE,MEN'S AND WOMEN'S CLOTHING STORES
08/12/2021,DRAINAGE MAINTENANCE - COUNTYWIDE NPR,THAMES WATER WEB,330.00,FEES,"UTLTS-ELCTRC, GAS, HEATING OIL, SANITARY, WATER"
08/12/2021,DOWNLANDS COUNTRYSIDE PROJECT,SQ  REVOLUTION RECREAT,357.35,DAY TO DAY MAINTENANCE,"BANDS, ORCHESTRAS, & MISC ENTRTNRS-NOT ELSWHR CLAS"
08/12/2021,TRANSPORT,PREMIER VANGUARD L,417.60,OPERATIONAL FIRE EQUIPMENT,"OFFICE, SCHOOL SUPPLY, AND STATIONERY STORES"
08/12/2021,NW LAC AND LEAVING CARE,ARGOS LTD,444.24,EQUIPMENT,DISCOUNT STORES
08/12/2021,NE CARE - NON-LAC CP & COURT,TRAVELODGE GB0000,510.97,INDEPENDENT LIVING PLACEMENTS,TRAVELODGE
08/12/2021,TRAINING PROPERTY,WWW.REIGATE-BANSTEAD.G,"1,433.50",,GOVERNMENT SERVICES-NOT ELSEWHERE CLASSIFIED
09/12/2021,ACL CENTRAL EXPENDITURE,GOOGLE  ADS2777015041,500.00,PUBLICITY,ADVERTISING SERVICES
09/12/2021,RECRUITMENT,INDEED TEL+35312545907,511.11,,BUSINESS SERVICES-NOT ELSEWHERE CLASSIFIED
09/12/2021,DOWNLANDS COUNTRYSIDE PROJECT,VAN ARNHEM NURSERY,520.92,DAY TO DAY MAINTENANCE,LAWN AND GARDEN SUPPLY STORES
09/12/2021,WOKING CMHRS CARE,HOTEL AT BOOKING.COM,595.00,OTHER COMMUNITY CARE PRIV,"LODGING-HOTELS,MOTELS,RESORTS-NOT CLASSIFIED"
09/12/2021,NE NIL RECOURSE TO PUBLIC FUNDS CARE,TRAVELODGE GB0000,600.66,INDEPENDENT LIVING PLACEMENTS,TRAVELODGE
10/12/2021,NE CARE - NON-LAC CP & COURT,TRAVELODGE GB0000,443.65,INDEPENDENT LIVING PLACEMENTS,TRAVELODGE
11/12/2021,BURBANK COMMUNITY HOME,SAINSBURYS.CO.UK,281.53,PURCHASE OF FOOD (RAW MATERIALS),"GROCERY STORES, SUPERMARKETS"
12/12/2021,MALLOW CRESCENT,ARGOS LTD,274.99,EQUIPMENT,DISCOUNT STORES
12/12/2021,DEVELOPMENT TEAM,MSFT   E0100GNNCI,353.85,SUBSCRIPTIONS,"COMPUTERS, COMPUTER PERIPHERAL EQUIPMENT, SOFTWARE"
12/12/2021,DEVELOPMENT TEAM,MSFT   E0100GNMR0,479.56,SUBSCRIPTIONS,"COMPUTERS, COMPUTER PERIPHERAL EQUIPMENT, SOFTWARE"
13/12/2021,RUTH HOUSE,W M MORRISONS.COM,297.43,PURCHASE OF FOOD (RAW MATERIALS),"GROCERY STORES, SUPERMARKETS"
13/12/2021,NW NIL RECOURSE TO PUBLIC FUNDS CARE,CURRYS ONLINE,344.99,OTHER COMMUNITY CARE VOL,ELECTRONIC SALES
13/12/2021,ACL CENTRAL EXPENDITURE,GOOGLE  ADS2777015041,500.00,PRINTING,ADVERTISING SERVICES
13/12/2021,THE ANNEX@84,GUILDFORD LOCK AND SAF,533.40,FIXTURES AND FITTINGS,"HAT CLEANING SHOPS, SHOE REPAIR SHOPS, SHOE SHINE"
14/12/2021,FIRE SERVICES IT,WWW.THESAFETYCENTRE.CO,311.76,TELECOMMUNICATION CHARGES,"GLASS, PAINT, WALLPAPER STORES"
14/12/2021,ACL CENTRAL EXPENDITURE,FACEBK JKRBDAT3H2,326.76,PUBLICITY,ADVERTISING SERVICES
14/12/2021,NE CARE - CP & COURT LAC,PREMIER INN 44536865,429.00,INDEPENDENT LIVING PLACEMENTS,PREMIER INN
14/12/2021,NE CARE - NON-LAC CP & COURT,TRAVELODGE GB0000,451.81,INDEPENDENT LIVING PLACEMENTS,TRAVELODGE
14/12/2021,NE CARE - NON-LAC CP & COURT,TRAVELODGE GB0000,490.57,INDEPENDENT LIVING PLACEMENTS,TRAVELODGE
14/12/2021,RECRUITMENT,INDEED TEL+35312545907,501.51,,BUSINESS SERVICES-NOT ELSEWHERE CLASSIFIED
14/12/2021,HIGHWAY DESIGN & DELIVERY,RICS COM GBP CYBS,598.80,TRAINING EXPENSES EXTERNAL GENERAL,"ORGANIZATIONS, MEMBERSHIP-NOT ELSEWHERE CLASSIFIED"
14/12/2021,TRANSPORT,APPLIANCEDIRECT CO,814.99,EQUIPMENT,COMPUTER SOFTWARE STORES
14/12/2021,TRANSPORT,APPLIANCEDIRECT CO,845.36,EQUIPMENT,COMPUTER SOFTWARE STORES
15/12/2021,YOUTH OFFER SERVICE,SAINSBURYS S/MKT,250.00,REFRESHMENT COSTS,"GROCERY STORES, SUPERMARKETS"
15/12/2021,PSS COUNTYWIDE,KENT COUNTY COUNCIL,350.00,SUBSCRIPTIONS,GOVERNMENT SERVICES-NOT ELSEWHERE CLASSIFIED
15/12/2021,BURBANK COMMUNITY HOME,SAINSBURYS.CO.UK,373.17,PURCHASE OF FOOD (RAW MATERIALS),"GROCERY STORES, SUPERMARKETS"
15/12/2021,SE LAC AND LEAVING CARE,TAPI CARPETS,412.93,OTHER COMMUNITY CARE VOL,FLOOR COVERING STORES
15/12/2021,SERVICE DELIVERY RESOURCES,POLYBAGS LTD,458.16,OPERATIONAL FIRE EQUIPMENT,NONDURABLE GOODS (NOT ELSEWHERE CLASSIFIED)
15/12/2021,ACL CENTRAL EXPENDITURE,GOOGLE  ADS2777015041,500.00,PUBLICITY,ADVERTISING SERVICES
15/12/2021,NW SECTION 17 CARE,TRAVELODGE GB0000,882.08,INDEPENDENT LIVING PLACEMENTS,TRAVELODGE
16/12/2021,AMHP TEAM WEST,TRAVELODGE GB0000,253.91,,TRAVELODGE
16/12/2021,TRAINING PROPERTY,EBAY COMMERCE UK LTD,259.98,,DEPARTMENT STORES
16/12/2021,TRANSPORT,AMZNMKTPLACE AMAZON.CO,445.87,,MISCELLANEOUS AND SPECIALTY RETAIL STORES
16/12/2021,PE/CDT MAINTENANCE OVERHEADS,WWW.LIFEFITNESS.CO.UK,798.89,ITEMS PURCHASED FOR RE-SALE,SPORTING GOODS STORES
16/12/2021,TRANSPORT,AMZNMKTPLACE AMAZON.CO,"1,121.08",EQUIPMENT,MISCELLANEOUS AND SPECIALTY RETAIL STORES
16/12/2021,WOKING CMHRS CARE,HOTEL AT BOOKING.COM,"2,207.61",VENUE COSTS (INCLUDING HIRE OF ROOMS),"LODGING-HOTELS,MOTELS,RESORTS-NOT CLASSIFIED"
17/12/2021,NE LAC AND LEAVING CARE,AO RETAIL LIMITED,279.00,EQUIPMENT,HOUSEHOLD APPLIANCE STORES
17/12/2021,SW LAC AND LEAVING CARE,LEIC CITY COUNCIL,333.95,OTHER COMMUNITY CARE VOL,GOVERNMENT SERVICES-NOT ELSEWHERE CLASSIFIED
17/12/2021,BIRCHLANDS,WWW.FOWLESSKIPHIRE.COM,366.00,,BUSINESS SERVICES-NOT ELSEWHERE CLASSIFIED
17/12/2021,RECRUITMENT,INDEED TEL+35312545907,507.12,,BUSINESS SERVICES-NOT ELSEWHERE CLASSIFIED
17/12/2021,TRANSPORT,GBP JAMES BOYLAN SAFE,835.20,"CLOTHING, UNIFORM AND LAUNDRY",MEN'S/WOMEN'S/CHILDREN'S UNIFORMS/COMMERCIAL CLOTH
17/12/2021,RECRUITMENT,2A PUBLISHING LTD,954.00,,MISCELLANEOUS PUBLISHING AND PRINTING
17/12/2021,TRANSPORT,GBP JAMES BOYLAN SAFE,"4,959.00","CLOTHING, UNIFORM AND LAUNDRY",MEN'S/WOMEN'S/CHILDREN'S UNIFORMS/COMMERCIAL CLOTH
17/12/2021,TRANSPORT,GBP JAMES BOYLAN SAFE,"4,959.00","CLOTHING, UNIFORM AND LAUNDRY",MEN'S/WOMEN'S/CHILDREN'S UNIFORMS/COMMERCIAL CLOTH
17/12/2021,TRANSPORT,GBP JAMES BOYLAN SAFE,"4,959.00",,MEN'S/WOMEN'S/CHILDREN'S UNIFORMS/COMMERCIAL CLOTH
17/12/2021,TRANSPORT,GBP JAMES BOYLAN SAFE,"4,959.00",,MEN'S/WOMEN'S/CHILDREN'S UNIFORMS/COMMERCIAL CLOTH
18/12/2021,ACL CENTRAL EXPENDITURE,GOOGLE ADS2777015041,500.00,PUBLICITY,ADVERTISING SERVICES
19/12/2021,RUTH HOUSE,AMAZON.CO.UK V13N94LJ5,350.00,EDUC VISITS/HOLS/CAMPS/TOYS,DIRECT MARKETING-OTHER DIRECT MARKETERS/NOT ELSEW.
19/12/2021,RUTH HOUSE,AMZNMKTPLACE,386.60,EDUC VISITS/HOLS/CAMPS/TOYS,MISCELLANEOUS AND SPECIALTY RETAIL STORES
19/12/2021,RECRUITMENT,INDEED TEL+35312545907,501.22,,BUSINESS SERVICES-NOT ELSEWHERE CLASSIFIED
20/12/2021,KARIBU COMMUNITY HOME,SAINSBURYS.CO.UK,288.19,PURCHASE OF FOOD (RAW MATERIALS),"GROCERY STORES, SUPERMARKETS"
20/12/2021,SE CARE - CP & COURT LAC,ARGOS LTD,311.94,OTHER COMMUNITY CARE VOL,DISCOUNT STORES
20/12/2021,HOPE SERVICE - WEST,FG BARNES & SONS L,372.95,,"AUTO & TRUCK DLRS-SALES,SVC, REPRS,PRTS, & LEASING"
20/12/2021,RECRUITMENT,INDEED TEL+35312545907,513.09,,BUSINESS SERVICES-NOT ELSEWHERE CLASSIFIED
20/12/2021,NE SECTION 17 CARE,TRAVELODGE GB0000,"1,059.51",INDEPENDENT LIVING PLACEMENTS,TRAVELODGE
20/12/2021,DIGITAL PROGRAMME,CONNECTEDTHINGS,"1,474.20",COMPUTER HARDWARE,"CONSULTING, MANAGEMENT, AND PUBLIC RELATIONS SVCS"
21/12/2021,MENTAL HEALTH MANAGEMENT TEAM,SPLIT -SJ HOTEL ACCOM SJ6100876 (98.04%),261.92,OTHER COMMUNITY CARE PRIV,TRAVELODGE
21/12/2021,CORONER,ACTIVEWEAR BRANDS,272.83,EQUIPMENT,MEN'S/WOMEN'S/CHILDREN'S UNIFORMS/COMMERCIAL CLOTH
21/12/2021,YSS YOUTH CENTRE IMPROVEMENTS,DVLA VEHICLE TAX,277.50,,TAX PAYMENTS
21/12/2021,MENTAL HEALTH MANAGEMENT TEAM,MULTI E-COMMERCE,339.97,,"EQUIP, FURNITURE, HOME FURNSHNGS STRS (EXCPT APPL)"
21/12/2021,HOPE SERVICE - WEST,B&Q LTD,478.00,,"BUILDING MATERIALS, LUMBER STORES"
21/12/2021,DOWNLANDS COUNTRYSIDE PROJECT,TEXACO ELITE GGES,500.00,VEHICLE REPAIRS AND MAINTENANCE,SERVICE STATIONS WITH OR WITHOUT ANCILLARY SERVICE
21/12/2021,ACL CENTRAL EXPENDITURE,GOOGLE ADS2777015041,500.00,PUBLICITY,ADVERTISING SERVICES
21/12/2021,RECRUITMENT,INDEED TEL+35312545907,501.02,,BUSINESS SERVICES-NOT ELSEWHERE CLASSIFIED
21/12/2021,GUILDFORD CMHRS CARE,TRAVELODGE GB0000,627.66,OTHER COMMUNITY CARE PRIV,TRAVELODGE
21/12/2021,WOKING CMHRS CARE,HOLIDAY INNS,"1,750.00",VENUE COSTS (INCLUDING HIRE OF ROOMS),HOLIDAY INNS
21/12/2021,TRAINING PROPERTY,LBRUT TOUCH TONE,"2,243.70",,GOVERNMENT SERVICES-NOT ELSEWHERE CLASSIFIED
22/12/2021,BURBANK COMMUNITY HOME,SAINSBURYS.CO.UK,333.17,PURCHASE OF FOOD (RAW MATERIALS),"GROCERY STORES, SUPERMARKETS"
22/12/2021,SE LAC AND LEAVING CARE,WWW.TMBC.GOV.UK,345.00,OTHER COMMUNITY CARE VOL,GOVERNMENT SERVICES-NOT ELSEWHERE CLASSIFIED
22/12/2021,NE CARE - LAC,TRANSGLOBAL EXPRESS,350.90,OTHER COMMUNITY CARE VOL,"COURIER SVC-AIR & GROUND, FREIGHT FORWARDERS"
22/12/2021,FIRE SERVICES IT,WWW.DTS.SOLUTIONS,364.80,TELECOMMUNICATION CHARGES,TELECOMMUNICATION EQUIPMENT INCL TELEPHONE SALES
22/12/2021,COMMUNICATIONS,FACEBK  58E2M8KYA2,567.00,PUBLICITY,ADVERTISING SERVICES
22/12/2021,NE NIL RECOURSE TO PUBLIC FUNDS CARE,TRAVELODGE GB0000,620.02,INDEPENDENT LIVING PLACEMENTS,TRAVELODGE
22/12/2021,SOLD ESTATES MANAGEMENT,HONEY BROS,691.06,EQUIPMENT,HARDWARE STORES
22/12/2021,NE CARE - NON-LAC CP & COURT,TRAVELODGE GB0000,"1,014.70",INDEPENDENT LIVING PLACEMENTS,TRAVELODGE
22/12/2021,TRANSPORT,SCREWFIX DIRECT,"1,195.28",EQUIPMENT,"BUILDING MATERIALS, LUMBER STORES"
22/12/2021,COM BUSINESS SUPPORT,CDER GROUP LIMITED.,"2,545.60",FEES,AUTOMOBILE PARKING LOTS AND GARAGES
23/12/2021,TRAINING PROPERTY,WWW.PHOENIXHSC.CO.UK,426.60,,SCHOOLS & EDUCATIONAL SVC-NOT ELSEWHERE CLASSIFIED
23/12/2021,ACL CENTRAL EXPENDITURE,GOOGLE ADS2777015041,500.00,PUBLICITY,ADVERTISING SERVICES
23/12/2021,TRANSPORT,AMZNMKTPLACE,519.00,FURNITURE,MISCELLANEOUS AND SPECIALTY RETAIL STORES
23/12/2021,TRANSPORT,AMZNMKTPLACE,525.00,FURNITURE,MISCELLANEOUS AND SPECIALTY RETAIL STORES
23/12/2021,BUSINESS UNIT,AMZNMKTPLACE AMAZON.CO,635.53,,MISCELLANEOUS AND SPECIALTY RETAIL STORES
24/12/2021,NE LAC AND LEAVING CARE,AO RETAIL LIMITED,308.00,EQUIPMENT,HOUSEHOLD APPLIANCE STORES
24/12/2021,RECRUITMENT,INDEED TEL+35312545907,500.97,,BUSINESS SERVICES-NOT ELSEWHERE CLASSIFIED
24/12/2021,WOKING CMHRS CARE,HOTEL AT BOOKING.COM,547.40,OTHER COMMUNITY CARE PRIV,"LODGING-HOTELS,MOTELS,RESORTS-NOT CLASSIFIED"
24/12/2021,AMHP TEAM WEST,HOTEL ON BOOKING.COM,797.30,,"LODGING-HOTELS,MOTELS,RESORTS-NOT CLASSIFIED"
27/12/2021,WAVERLEY CMHRS CARE,AMZNMKTPLACE,278.00,FURNITURE,MISCELLANEOUS AND SPECIALTY RETAIL STORES
27/12/2021,ACL CENTRAL EXPENDITURE,GOOGLE ADS2777015041,500.00,PUBLICITY,ADVERTISING SERVICES
27/12/2021,RECRUITMENT,INDEED TEL+35312545907,519.48,,BUSINESS SERVICES-NOT ELSEWHERE CLASSIFIED
